Workbook

Sheet Recap
A1: =IF('Cap Devel CBE Details'!B1 ="Enter Project Name","Enter Project Name On Details Page",'Cap Devel CBE Details'!B1) -> Enter Project Name On Details Page | F1: =IF('Cap Devel CBE Details'!B3 = "Choose Agency / Institution", "Enter Agency Name on Details Page", 'Cap Devel CBE Details'!B3) -> Select Agency / Institution
A2: Building Costs | F2: =G2/'Cap Devel CBE Details'!C25 ->  | G2: =G3+G7+G12+G20+G27+G30 -> 
B3: New Building Costs | F3: =G3/'Cap Devel CBE Details'!C16 ->  | G3: =SUM(G4:G6) -> 0
C4: New facility costs | G4: ='Cap Devel CBE Details'!$F$16 -> 0
C5: Additional construction costs details | G5: ='Cap Devel CBE Details'!$F$33*$D$98 -> 0
C6: High performance building costs | G6: ='Cap Devel CBE Details'!$F$44*Recap!D99 -> 0
B7: Renovated Building Costs | F7: =IF(G7>0.01,(G7/'Cap Devel CBE Details'!C23),0) -> 0 | G7: =(SUM(G8:G11)) -> 0
C8: Renovated construction costs | G8: ='Cap Devel CBE Details'!F23 -> 0
C9: Additional construction costs details | G9: ='Cap Devel CBE Details'!$F$33*$E$98 -> 0
C10: High performance building costs | G10: ='Cap Devel CBE Details'!$F$44*Recap!E99 -> 0
C11: Hazardous material Cost detail - Remodel | G11: ='Cap Devel CBE Details'!$F$68*E100 -> 0
B12: Building Escalation Costs | F12: =G12/'Cap Devel CBE Details'!C25 ->  | G12: =SUM(G13:G19) -> 0
C13: New facility escalation/location factor | G13: ='Cap Devel CBE Details'!$G$16-'Cap Devel CBE Details'!$F$16 -> 0
C14: New - Additional construction costs details - escalation & location factors | G14: =('Cap Devel CBE Details'!$G$33-'Cap Devel CBE Details'!$F$33)*Recap!$D$98 -> 0
C15: New - High performance building - escalation & location factors | G15: =('Cap Devel CBE Details'!$G$44-'Cap Devel CBE Details'!$F$44)*Recap!D99 -> 0
C16: Renovated construction escalation/location factor | G16: ='Cap Devel CBE Details'!G23-'Cap Devel CBE Details'!F23 -> 0
C17: Renovated - Additional construction costs details - escalation & location factors | G17: =('Cap Devel CBE Details'!$G$33-'Cap Devel CBE Details'!$F$33)*Recap!$E$98 -> 0
C18: Renovated - High performance building - escalation & location factors | G18: =('Cap Devel CBE Details'!$G$44-'Cap Devel CBE Details'!$F$44)*Recap!E99 -> 0
C19: Renovated - Hazardous Material - escalation & location faction | G19: =('Cap Devel CBE Details'!$G$68-'Cap Devel CBE Details'!$F$68)*Recap!E100 -> 0
B20: Building Contingency/Insurance | F20: =G20/'Cap Devel CBE Details'!C25 ->  | G20: =SUM(G21:G26) -> 0
C21: New Const Contingency | G21: ='Cap Devel CBE Summary'!C24*D112 -> 0
C22: New Const Builders Risk | G22: ='Cap Devel CBE Summary'!C26*D113 -> 0
C23: New Const Legal | G23: ='Cap Devel CBE Summary'!C27*D114 -> 0
C24: Renovated Building Contingency | G24: ='Cap Devel CBE Summary'!C24*E112 -> 0
C25: Renovated Building Builders Risk | G25: ='Cap Devel CBE Summary'!C26*E113 -> 0
C26: Renovated Building Legal | G26: ='Cap Devel CBE Summary'!C27*E114 -> 0
B27: Building FF&E | F27: =G27/'Cap Devel CBE Details'!C25 ->  | G27: =SUM(G28:G29) -> 0
C28: New Const - Furnishings & equipment | G28: ='Cap Devel CBE Details'!$F$109*D103 -> 0
C29: Renovation - Furnishings & equipment | G29: ='Cap Devel CBE Details'!$F$109*E103 -> 0
B30: Building Soft Costs | F30: =G30/'Cap Devel CBE Details'!C25 ->  | G30: =SUM(G31:H47) -> 
C31: Utility impact and connection fees | G31: ='Cap Devel CBE Details'!$F$120 -> 0
C32: New Const - IT | G32: ='Cap Devel CBE Details'!$F$129*Recap!D104 -> 0
C33: New Const - Utah Art | G33: ='Cap Devel CBE Details'!$F$132*Recap!D105 -> 0
C34: New Const - Testing & Inspections | G34: ='Cap Devel CBE Details'!$F$143*Recap!D106 -> 0
C35: New Const - Moving & Occupancy Costs | G35: ='Cap Devel CBE Details'!$F$149*Recap!D107 -> 0
C36: New Const - DFCM Management | G36: ='Cap Devel CBE Details'!$F$157*Recap!D108 -> 0
C37: New Const - User Fees | G37: ='Cap Devel CBE Details'!$F$164*Recap!D109 -> 0
C38: New Const - High Performance - Commissioning/Envelope/Design | G38: ='Cap Devel CBE Details'!$F$174*Recap!D110 -> 
C39: New Const - Other Costs | G39: ='Cap Devel CBE Details'!$F$183*Recap!D111 -> 0
C40: Renovation - IT | G40: ='Cap Devel CBE Details'!$F$129*Recap!E104 -> 0
C41: Renovation - Utah Art | G41: ='Cap Devel CBE Details'!$F$132*Recap!E105 -> 0
C42: Renovation - Testing & Inspections | G42: ='Cap Devel CBE Details'!$F$143*Recap!E106 -> 0
C43: Renovation - Moving & Occupancy Costs | G43: ='Cap Devel CBE Details'!$F$149*Recap!E107 -> 0
C44: Renovation - DFCM Management | G44: ='Cap Devel CBE Details'!$F$157*Recap!E108 -> 0
C45: Renovation - User Fees | G45: ='Cap Devel CBE Details'!$F$164*Recap!E109 -> 0
C46: Renovation - High Performance - Commissioning/Envelope/Design | G46: ='Cap Devel CBE Details'!$F$174*Recap!E110 -> 
C47: Renovation - Other Costs | G47: ='Cap Devel CBE Details'!$F$183*Recap!E111 -> 0
A49: Site Costs | F49: =G49/'Cap Devel CBE Details'!C25 ->  | G49: =G50+G54+G58+G62 -> 0
B50: Site Infrastructure Costs | F50: =G50/'Cap Devel CBE Details'!C25 ->  | G50: =SUM(G51:H53) -> 0
C51: Site infrastructure costs | G51: ='Cap Devel CBE Details'!F41 -> 0
C52: Additional construction costs details | G52: ='Cap Devel CBE Details'!$F$33*$F$98 -> 0
C53: Hazardous Materials & Demo | G53: ='Cap Devel CBE Details'!$F$68*F100 -> 0
B54: Site Infrastructure & Impact connect fees Escalation Costs | F54: =G54/'Cap Devel CBE Details'!C25 ->  | G54: =SUM(G55:H57) -> 0
C55: Site infrastructure costs - escalation & location factor | G55: =('Cap Devel CBE Details'!G41-'Cap Devel CBE Details'!F41) -> 0
C56: Site - Additional construction costs details - escalation & location factors | G56: =('Cap Devel CBE Details'!$G$33-'Cap Devel CBE Details'!$F$33)*Recap!$F$98 -> 0
C57: Hazardous Material & Demo - escalation & location faction | G57: =('Cap Devel CBE Details'!$G$68-'Cap Devel CBE Details'!$F$68)*Recap!F100 -> 0
B58: Site Infrastructure Contingency/Insurance | F58: =G58/'Cap Devel CBE Details'!C25 ->  | G58: =SUM(G59:G61) -> 0
C59: Contingency | G59: ='Cap Devel CBE Summary'!C24*F112 -> 0
C60: Builders Risk | G60: ='Cap Devel CBE Summary'!C26*F113 -> 0
C61: Legal | G61: ='Cap Devel CBE Summary'!C27*F114 -> 0
B62: Site Infrastructure Soft Costs | F62: =G62/'Cap Devel CBE Details'!C25 ->  | G62: =SUM(G63:G67) -> 0
C63: Testing & Inspections | G63: ='Cap Devel CBE Details'!$F$143*Recap!F106 -> 0
C64: DFCM Management | G64: ='Cap Devel CBE Details'!$F$157*Recap!F108 -> 0
C65: User Fees | G65: ='Cap Devel CBE Details'!$F$164*Recap!F109 -> 0
C66: Other Costs | G66: ='Cap Devel CBE Details'!$F$183*Recap!F111 -> 0
A68: Pre-Construction Costs | F68: =G68/'Cap Devel CBE Details'!C25 ->  | G68: =G69+G73 -> 
B69: Programming/Pre-Design | F69: =G69/'Cap Devel CBE Details'!C25 ->  | G69: =SUM(G70:G72) -> 0
C70: Pre-Design/Planning Costs - New Const | G70: ='Cap Devel CBE Details'!$F$80*D101 -> 0
C71: Pre-Design/Planning Costs - Remodel | G71: ='Cap Devel CBE Details'!$F$80*E101 -> 0
C72: Pre-Design/Planning Costs - Site | G72: ='Cap Devel CBE Details'!$F$80*F101 -> 0
B73: Design | F73: =G73/'Cap Devel CBE Details'!C25 ->  | G73: =SUM(G74:G76) -> 
C74: Design - New Const | G74: ='Cap Devel CBE Details'!$F$87*D102 -> 
C75: Design - Remodel | G75: ='Cap Devel CBE Details'!$F$87*E102 -> 
C76: Design - Site | G76: ='Cap Devel CBE Details'!$F$87*F102 -> 
A78: Property Acquisition | F78: =G78/'Cap Devel CBE Details'!C25 ->  | G78: =G79 -> 0
B79: Property Acquisition Costs | F79: =G79/'Cap Devel CBE Details'!C25 ->  | G79: =SUM(G80:G80) -> 0
C80: Land Purchase/Acquisition Costs | G80: ='Cap Devel CBE Details'!F93 -> 0
A82: Project Total | F82: =G82/'Cap Devel CBE Details'!C25 ->  | G82: =G2+G49+G68+G78 -> 
B84: Less Other Funding | G84: ='Cap Devel CBE Details'!F209+'Cap Devel CBE Details'!F203 -> 0
A86: Request for State Funding | F86: =G86/'Cap Devel CBE Details'!C25 ->  | G86: =G82-G84 -> 
A88: ='Cap Devel CBE Details'!A212 -> OFFICIAL UTAH DFCM CBE FORM V2.09 Last Revision: 2-14-2023
E93: =G86='Cap Devel CBE Summary'!C40 ->  | G93: Recap Total = Summary Total
D95: New Facility Cost | E95: Remodel Facility Cost | F95: Site Cost | G95: PROPERTY ACQUISITION COST
A96: Self Calculating - Input Only Required To Change Ratios | D96: ='Cap Devel CBE Details'!F16 -> 0 | E96: ='Cap Devel CBE Details'!F23 -> 0 | F96: ='Cap Devel CBE Details'!F41 -> 0 | G96: ='Cap Devel CBE Details'!F93 -> 0 | H96: Must = 100%
A97: Ratios To Apply Costs To Multiple Categories | D97: New | E97: Remodel | F97: Site | G97: Land | H97: Total
A98: Additional Construction costs details | D98: =IF($D$96=0,0,$D$96/($D$96+$E$96+$F$96)) -> 0 | E98: =IF($E$96=0,0,$E$96/($D$96+$E$96+$F$96)) -> 0 | F98: =IF($F$96=0,0,$F$96/($D$96+$E$96+$F$96)) -> 0 | G98: Not Used | H98: =SUM(D98:G98) -> 0
A99: High performance building | D99: =IF($D$96=0,0,$D$96/($D$96+$E$96)) -> 0 | E99: =IF($E$96=0,0,$E$96/($D$96+$E$96)) -> 0 | F99: Not Used | G99: Not Used | H99: =SUM(D99:G99) -> 0
A100: Hazardous Material | D100: Not Used | E100: =IF($E$96=0,0,$E$96/($E$96+$F$96)) -> 0 | F100: =IF($F$96=0,0,$F$96/($E$96+$F$96)) -> 0 | G100: Not Used | H100: =SUM(D100:G100) -> 0
A101: Pre-Design/Planning | D101: =IF($D$96=0,0,$D$96/($D$96+$E$96+$F$96)) -> 0 | E101: =IF($E$96=0,0,$E$96/($D$96+$E$96+$F$96)) -> 0 | F101: =IF($F$96=0,0,$F$96/($D$96+$E$96+$F$96)) -> 0 | G101: Not Used | H101: =SUM(D101:G101) -> 0
A102: Design | D102: =IF($D$96=0,0,$D$96/($D$96+$E$96+$F$96)) -> 0 | E102: =IF($E$96=0,0,$E$96/($D$96+$E$96+$F$96)) -> 0 | F102: =IF($F$96=0,0,$F$96/($D$96+$E$96+$F$96)) -> 0 | G102: Not Used | H102: 0
A103: Furnishings & Equipment | D103: =IF($D$96=0,0,$D$96/($D$96+$E$96)) -> 0 | E103: =IF($E$96=0,0,$E$96/($D$96+$E$96)) -> 0 | F103: Not Used | G103: Not Used | H103: 0
A104: Information Technology | D104: =IF($D$96=0,0,$D$96/($D$96+$E$96)) -> 0 | E104: =IF($E$96=0,0,$E$96/($D$96+$E$96)) -> 0 | F104: Not Used | G104: Not Used | H104: 0
A105: Utah Art | D105: =IF($D$96=0,0,$D$96/($D$96+$E$96)) -> 0 | E105: =IF($E$96=0,0,$E$96/($D$96+$E$96)) -> 0 | F105: Not Used | G105: Not Used | H105: 0
A106: Testing & Inspections | D106: =IF($D$96=0,0,$D$96/($D$96+$E$96+$F$96)) -> 0 | E106: =IF($E$96=0,0,$E$96/($D$96+$E$96+$F$96)) -> 0 | F106: =IF($F$96=0,0,$F$96/($D$96+$E$96+$F$96)) -> 0 | G106: Not Used | H106: 0
A107: Moving & Occupancy Costs | D107: =IF($D$96=0,0,$D$96/($D$96+$E$96)) -> 0 | E107: =IF($E$96=0,0,$E$96/($D$96+$E$96)) -> 0 | F107: Not Used | G107: Not Used | H107: 0
A108: DFCM Management | D108: =IF($D$96=0,0,$D$96/($D$96+$E$96+$F$96)) -> 0 | E108: =IF($E$96=0,0,$E$96/($D$96+$E$96+$F$96)) -> 0 | F108: =IF($F$96=0,0,$F$96/($D$96+$E$96+$F$96)) -> 0 | G108: Not Used | H108: 0
A109: User Fees | D109: =IF($D$96=0,0,$D$96/($D$96+$E$96+$F$96)) -> 0 | E109: =IF($E$96=0,0,$E$96/($D$96+$E$96+$F$96)) -> 0 | F109: =IF($F$96=0,0,$F$96/($D$96+$E$96+$F$96)) -> 0 | G109: Not Used | H109: 0
A110: Commissioning | D110: =IF($D$96=0,0,$D$96/($D$96+$E$96)) -> 0 | E110: =IF($E$96=0,0,$E$96/($D$96+$E$96)) -> 0 | F110: Not Used | G110: Not Used | H110: 0
A111: Other Costs | D111: =IF($D$96=0,0,$D$96/($D$96+$E$96+$F$96)) -> 0 | E111: =IF($E$96=0,0,$E$96/($D$96+$E$96+$F$96)) -> 0 | F111: =IF($F$96=0,0,$F$96/($D$96+$E$96+$F$96)) -> 0 | G111: Not Used | H111: 0
A112: Contingency | D112: =IF($D$96=0,0,$D$96/($D$96+$E$96+$F$96)) -> 0 | E112: =IF($E$96=0,0,$E$96/($D$96+$E$96+$F$96)) -> 0 | F112: =IF($F$96=0,0,$F$96/($D$96+$E$96+$F$96)) -> 0 | G112: Not Used | H112: =SUM(D112:G112) -> 0
A113: Builders Risk | D113: =IF($D$96=0,0,$D$96/($D$96+$E$96+$F$96)) -> 0 | E113: =IF($E$96=0,0,$E$96/($D$96+$E$96+$F$96)) -> 0 | F113: =IF($F$96=0,0,$F$96/($D$96+$E$96+$F$96)) -> 0 | G113: Not Used | H113: =SUM(D113:G113) -> 0
A114: Legal Services | D114: =IF($D$96=0,0,$D$96/($D$96+$E$96+$F$96)) -> 0 | E114: =IF($E$96=0,0,$E$96/($D$96+$E$96+$F$96)) -> 0 | F114: =IF($F$96=0,0,$F$96/($D$96+$E$96+$F$96)) -> 0 | G114: Not Used | H114: 0

Sheet Cap Devel CBE Summary
A1: Project Name: | B1: ='Cap Devel CBE Details'!B1 -> Enter Project Name
A2: Project Type: | B2: ='Cap Devel CBE Details'!B2 -> Select Project Type
A3: Agency/Institution: | B3: ='Cap Devel CBE Details'!B3:G3 -> Select Agency / Institution | G3: Print Date
A4: Project Manager: | B4: ='Cap Devel CBE Details'!B4:G4 -> Enter DFCM Project Manager | G4: =TODAY() -> 45513
A5: Delivery Method: | B5: ='Cap Devel CBE Details'!B5:G5 -> Select Delivery Method | D5: Project Location: | E5: =IF('Cap Devel CBE Details'!F1="Select County","Select County On Details Page",'Cap Devel CBE Details'!F1) -> Select County On Details Page
C6: Cost
A7: Cost Summary | B7: $/SF | C7: $ Amount | D7: Notes | M7: Development - Design Build
A8: Facility Cost | B8: =C8/TGSF ->  | C8: ='Cap Devel CBE Details'!G25 -> 0 | M8: Development - Design Bid Build
A9: Additional Construction Cost | B9: =C9/TGSF ->  | C9: ='Cap Devel CBE Details'!G33 -> 0 | M9: MOU Development
A10: Site Cost | B10: =C10/TGSF ->  | C10: ='Cap Devel CBE Details'!G41 -> 0
A11: High Performance Building | B11: =C11/TGSF ->  | C11: ='Cap Devel CBE Details'!G44 -> 0
A12: Total Construction Cost | B12: =C12/TGSF ->  | C12: =SUM(C8:C11) -> 0
A14: Soft Costs: | B14: $/SF | C14: $ Amount | D14: Notes
A15: Hazardous Materials | C15: ='Cap Devel CBE Details'!G68 -> 0
A16: Pre-Design/Planning | C16: ='Cap Devel CBE Details'!F80 -> 0
A17: Design | C17: ='Cap Devel CBE Details'!F87 -> 
A18: Property Acquisition | C18: ='Cap Devel CBE Details'!F93 -> 0
A19: Furnishings & Equipment | C19: ='Cap Devel CBE Details'!F109 -> 0
A20: Utility Fee Cost | C20: ='Cap Devel CBE Details'!F120 -> 0 | M20: Development - CMGC
A21: Information Technology: | C21: ='Cap Devel CBE Details'!F129 -> 0
A22: Utah Art (1% of Construction Budget) | C22: ='Cap Devel CBE Details'!F132 -> 0
A23: Testing & Inspection | C23: ='Cap Devel CBE Details'!F143 -> 0
A24: Contingency | B24: =Contingency!B5 ->  | C24: =Contingency!D5 -> 0 | D24: =Contingency!C3/Contingency!C5 ->  | E24: =IF(Contingency!C3=0,"@ 0%",Contingency!B3) -> @ 0% | F24: =Contingency!C4/Contingency!C5 ->  | G24: =IF(Contingency!C4=0,"@ 0%",Contingency!B4) -> @ 0%
A25: Moving/Occupancy | C25: ='Cap Devel CBE Details'!F149 -> 0
A26: Builder's Risk Insurance (0.15% of Construction Budget) | C26: =C12*0.0015 -> 0
A27: Legal Services (0.05% of Construction Budget) | C27: =C12*0.0005 -> 0
A28: DFCM Management | C28: ='Cap Devel CBE Details'!F157 -> 0
A29: User Fees | C29: ='Cap Devel CBE Details'!F164 -> 0
A30: Commissioning | C30: ='Cap Devel CBE Details'!F174 -> 
A31: Other Costs | C31: ='Cap Devel CBE Details'!F183 -> 0
A32: Total Soft Costs | B32: =C32/TGSF ->  | C32: =SUM(C15:C31) -> 
A34: Total Project Cost | B34: =C34/TGSF ->  | C34: =C12+C32 -> 
A36: Previous State Funding | C36: ='Cap Devel CBE Details'!F203 -> 0 | D36: =IF(C36>0,'Cap Devel CBE Details'!A201,"") -> 
D37: =IF(C36>0,'Cap Devel CBE Details'!B201,"") -> 
A38: Other Funding Sources (Identify in note) | C38: ='Cap Devel CBE Details'!F209 -> 0 | D38: =IF(C38>0,'Cap Devel CBE Details'!A206,"") -> 
D39: =IF(C38>0,'Cap Devel CBE Details'!B206,"") -> 
A40: REQUEST FOR STATE FUNDING | C40: =+C34-C36-C38 -> 
A42: Project Information
F43: ='Cap Devel CBE Details'!B53 -> Base $/SF Cost Date - (Date Escalation Begins): | G43: ='Cap Devel CBE Details'!C53 -> 1900-01-01
F44: ='Cap Devel CBE Details'!B54 -> Estimated Final Bid Date (Date Escalation Ends): | G44: ='Cap Devel CBE Details'!C54 -> 1900-01-01
F45: ='Cap Devel CBE Details'!B55 -> Estimated Substantial Completion Date: | G45: ='Cap Devel CBE Details'!C55 -> 1900-01-01
A46: ='Cap Devel CBE Details'!A212 -> OFFICIAL UTAH DFCM CBE FORM V2.09 Last Revision: 2-14-2023 | F46: Date Last Modified | G46: =LastModified() -> 2023-12-18T14:59:15
M47: =NOW() -> 2024-08-09T08:30:37.660

Sheet Cap Devel CBE Details
A1: Project Name: | B1: Enter Project Name | D1: Project Location: | F1: Select County | G1: =TODAY() -> 2024-08-09 | H1: IMPORTANT INSTRUCTIONS | X1: <---- Project Name Field is right here. Did you want to add it somewhere else too.
A2: Project Type: | B2: Select Project Type | D2: Additional Project Info: | H2: Start With A New Blank CBE Form For Every New Project. No Exceptions!
A3: Agency/Institution: | B3: Select Agency / Institution | H3: Do Not Reuse An Existing CBE From a Previous Project. No Exceptions! | X3: John - we need to add a project name field, and we are missing some of the State agencies in the drop down menu.
A4: Project Manager: | B4: Enter DFCM Project Manager | H4: All Previous CBE Forms Will Not Be Accepted. No Exceptions! | X4: Is there a list I can use or are you just noticing some specific ones that I missed. I only used ones that had been used in the state cost database.
A5: Delivery Method: | B5: Select Delivery Method | H5: Form Created and Maintained by John Shampton, CPE DFCM Cost Estimator 801-921-2170 | X5: Under delivery method, we may want to change it to just MOU and add AMA.
H6: Any Errors, Problems, Questions - Please Contact John Shampton | L6: jshampton@utah.gov | X6: Added MOU and AMA for Development and Improvement
H7: Drop Down Lists: If any items need to be added to the list, modified or deleted, Please Contact John Shampton
A8: Facility Cost | B8: Explanation | C8: GSF | E8: $/SF | F8: Cost | G8: Escalated Cost | H8: Estimate vs Actual Comparison | Z8: mou ama
A9: New Facility Cost Details: | H9: Actual | I9: Difference | J9: Notes: | Z9: development\
A10: Enter New Construction Details | C10: 0 | D10: SF | E10: 0 | F10: =C10*E10 -> 0 | G10: =(F10*(1+$C$57))+(F10*$E$58) -> 0 | H10: 0 | I10: =G10-H10 -> 0 | Z10: Improvement
C11: 0 | D11: SF | E11: 0 | F11: =C11*E11 -> 0 | G11: 0 | H11: 0 | I11: =G11-H11 -> 0
C12: 0 | D12: SF | E12: 0 | F12: 0 | G12: 0 | H12: 0 | I12: 0
C13: 0 | D13: SF | E13: 0 | F13: =C13*E13 -> 0 | G13: 0 | H13: 0 | I13: 0 | X13: Will it break the form if the PM adds more fields/rows here?
C14: 0 | D14: SF | E14: 0 | F14: =C14*E14 -> 0 | G14: 0 | H14: 0 | I14: 0 | X14: As long as they are entering new rows in the middle and not at the top or bottom, the calculation will still function properly.
C15: 0 | D15: SF | E15: 0 | F15: 0 | G15: 0 | H15: 0 | I15: 0
A16: Subtotal - New Facility Costs | C16: =SUM(C10:C15) -> 0 | D16: SF | F16: =SUM(F10:F15) -> 0 | G16: =SUM(G10:G15) -> 0 | H16: =SUM(H10:H15) -> 0 | I16: =G16-H16 -> 0
A18: Remodel Facility Cost Details: | B18: Explanation | C18: GSF | E18: $/SF | F18: Cost | G18: Escalated Cost | H18: Actual | I18: Difference | J18: Notes:
A19: Enter Facility Remodel Details | C19: 0 | D19: SF | E19: 0 | F19: =C19*E19 -> 0 | G19: =(F19*(1+$C$57))+(F19*$E$58) -> 0 | H19: 0 | I19: =G19-H19 -> 0
C20: 0 | D20: SF | E20: 0 | F20: =C20*E20 -> 0 | G20: =(F20*(1+$C$57))+(F20*$E$58) -> 0 | H20: 0 | I20: =G20-H20 -> 0 | X20: Same questions
C21: 0 | D21: SF | E21: 0 | F21: 0 | G21: =(F21*(1+$C$57))+(F21*$E$58) -> 0 | H21: 0 | I21: 0 | X21: As long as they are entering new rows in the middle and not at the top or bottom, the calculation will still function properly.
C22: 0 | D22: SF | E22: 0 | F22: 0 | G22: =(F22*(1+$C$57))+(F22*$E$58) -> 0 | H22: 0 | I22: 0
A23: Subtotal - Remodel Facility Costs | C23: =SUM(C19:C22) -> 0 | D23: SF | F23: =SUM(F19:F22) -> 0 | G23: =SUM(G19:G22) -> 0 | H23: =SUM(H19:H22) -> 0 | I23: =G23-H23 -> 0
H24: Actual | I24: Difference | J24: Notes:
A25: Total Facility Costs | C25: =C16+C23 -> 0 | D25: TGSF | F25: =F16+F23 -> 0 | G25: =G16+G23 -> 0 | H25: =H16+H23 -> 0 | I25: =G25-H25 -> 0
C26: Total GSF | F26: Facility Cost | G26: Escalated Cost
A28: Additional Construction Cost Details: | B28: Explanation | C28: Units | E28: Unit Cost/Rate | F28: Cost | G28: Escalated Cost | H28: Actual | I28: Difference | J28: Notes:
A29: Enter Additional Construction Cost Description | C29: 0 | D29: Unit | E29: 0 | F29: =C29*E29 -> 0 | G29: =(F29*(1+$C$57))+(F29*$E$58) -> 0 | H29: 0 | I29: =G29-H29 -> 0
C30: 0 | D30: Unit | E30: 0 | F30: =C30*E30 -> 0 | G30: =(F30*(1+$C$57))+(F30*$E$58) -> 0 | H30: 0 | I30: =G30-H30 -> 0
C31: 0 | D31: Unit | E31: 0 | F31: =C31*E31 -> 0 | G31: =(F31*(1+$C$57))+(F31*$E$58) -> 0 | H31: 0 | I31: 0
C32: 0 | D32: Unit | E32: 0 | F32: =C32*E32 -> 0 | G32: =(F32*(1+$C$57))+(F32*$E$58) -> 0 | H32: 0 | I32: 0
A33: Total Additional Construction Costs | F33: =SUM(F29:F32) -> 0 | G33: =SUM(G29:G32) -> 0 | H33: =SUM(H29:H32) -> 0 | I33: =G33-H33 -> 0
A35: Site Cost Details: | B35: Explanation | C35: Units | E35: Unit Cost/Rate | F35: Cost | G35: Escalated Cost | H35: Actual | I35: Difference | J35: Notes:
A36: Enter Site Cost Details | C36: 0 | D36: Unit | E36: 0 | F36: =C36*E36 -> 0 | G36: =(F36*(1+$C$57))+(F36*$E$58) -> 0 | H36: 0 | I36: =G36-H36 -> 0
C37: 0 | D37: Unit | E37: 0 | F37: 0 | G37: =(F37*(1+$C$57))+(F37*$E$58) -> 0 | H37: 0 | I37: =G37-H37 -> 0
C38: 0 | D38: Unit | E38: 0 | F38: 0 | G38: =(F38*(1+$C$57))+(F38*$E$58) -> 0 | H38: 0 | I38: 0
C39: 0 | D39: Unit | E39: 0 | F39: 0 | G39: =(F39*(1+$C$57))+(F39*$E$58) -> 0 | H39: 0 | I39: 0
C40: 0 | D40: Unit | E40: 0 | F40: 0 | G40: =(F40*(1+$C$57))+(F40*$E$58) -> 0 | H40: 0 | I40: =G40-H40 -> 0
A41: Total Site Costs | F41: =SUM(F36:F40) -> 0 | G41: =SUM(G36:G40) -> 0 | H41: =SUM(H36:H40) -> 0 | I41: =G41-H41 -> 0
A43: High Performance Building Cost Details: | B43: Explanation | C43: Units | E43: Unit Cost | F43: Cost | G43: Escalated Cost | H43: Actual | I43: Difference | J43: Notes:
A44: Is This Building High Performance? Select YES OR NO ► | C44: Choose One | F44: =IF(E44>0,E44,IF(C44="YES",(F25+F120+F33+F41)*D45,0)) -> 0 | G44: =(F44*(1+$C$57))+(F44*$E$58) -> 0 | H44: 0 | I44: =G44-H44 -> 0
C45: To supersede the 1.5% auto-calculation, change the percentage or enter a fixed amount alternate cost above arrows: | D45: 0.015 | E45: ▲ ▲ ▲
F47: Cost | G47: Escalated Cost | H47: Actual | I47: Difference | J47: Notes:
A48: Total Construction Costs | F48: =F25+F33+F41+F44 -> 0 | G48: =G25+G120+G33+G41+G44 -> 0 | H48: =H16+H23+H33+H41+H44 -> 0 | I48: =G48-H48 -> 0
F49: Cost of Escalation on Total Construction Cost | G49: =(TCC-F48)+(G68-F68) -> 0
C50: `
A51: Other Project Information: | B51: Update Dates If Any Changes Are Made To The CBE | E51: Enter Escalation % For Years In Blue (0% If White) | O51: Begin Escalation | T51: Escalation Calculation
E52: Base Cost Per Square Foot Already Escalated | G52: % of Year Included | H52: Effective Rate | O52: Start Day (#) | T52: % of Year | U52: Effective Rate
B53: Base $/SF Cost Date - (Date Escalation Begins): | C53: 1900-01-01 | E53: 0.14 | F53: =C53 -> 1900-01-01 | G53: =T53 -> 0.997260274 | H53: =U53-1 -> 0.1396164384 | O53: =C53-DATE(YEAR(C53),1,0) -> 1 | Q53: =G58 -> 0 | R53: Year | S53: 1 | T53: =O57 -> 0.997260274 | U53: =((T53*E53)+1) -> 1.139616438
B54: Estimated Final Bid Date (Date Escalation Ends): | C54: 1900-01-01 | E54: 0.12 | F54: =IF(T54>0,(F53+366),"") ->  | G54: =T54 -> -0.997260274 | H54: -0.1196712329 | O54: Days in First Year | Q54: =Q53-T53 -> -0.997260274 | R54: Year | S54: 2 | T54: =IF(Q54>1,1,Q54) -> -0.997260274 | U54: =((T54*E54)+1) -> 0.8803287671 | X54: The language in red on this line may read better if we list it as "Latest revision to the CBE" | AF54: Changed to Date of Latest Revision to the CBE
B55: Estimated Substantial Completion Date: | C55: 1900-01-01 | E55: 0.08 | F55: =IF(T55>0,(F54+366),"") ->  | G55: 0 | H55: 0 | O55: =365-O53 -> 364 | Q55: =Q54-T54 -> 0 | R55: Year | S55: 3 | T55: =IF(Q55>1,1,Q55) -> 0 | U55: =((T55*E55)+1) -> 1 | X55: Estimated bid date | AF55: Changed to Estimated Bid Date
B56: Date of Last Modifications to the CBE: | C56: =LastModified() -> 2023-12-18T14:59:15 | E56: 0.05 | F56: =IF(T56>0,(F55+366),"") ->  | G56: 0 | H56: 0 | O56: % of First Year | Q56: =Q55-T55 -> 0 | R56: Year | S56: 4 | T56: =IF(Q56>1,1,Q56) -> 0 | U56: =((T56*E56)+1) -> 1 | X56: Estimated Substantial Completion | AF56: Changed to Estimated Substantial Completion Date
A57: Building Location Cost Increase Factor Included: | B57: =IF($F$1="Select County","Select County At Top of page",$F$1) -> Select County At Top of page | C57: ='Location Factors'!C5 -> 0 | E57: 0.05 | F57: =IF(T57>0,(F56+366),"") ->  | G57: 0 | H57: 0 | O57: =O55/365 -> 0.997260274 | Q57: =Q56-T56 -> 0 | R57: Year | S57: 5 | T57: =IF(Q57>1,1,Q57) -> 0 | U57: =((T57*E57)+1) -> 1
C58: Compounded Escalation Factor Included: | E58: =T58-1 -> 0.003237134172 | F58: =IF(G58>0,E58/G58,0) -> 0 | G58: =(C54-C53)/365 -> 0 | H58: 0.003237134172 | O58: Total Days | T58: =((T53*E53)+1)*((T54*E54)+1)*((T55*E55)+1)*((T56*E56)+1)*((T57*E57)+1) -> 1.003237134 | U58: =U53*U54*U55*U56*U57 -> 1.003237134 | X58: What does the info in the C62 cell note?
O59: =C54-C53 -> 0 | T59: Compounded | U59: Check | X59: Corrected This is the cost increase for locations that are difficult or long distance, It is the same as it was included in past CBEs. It was normally hand entered in. Now it is using the County to calculate, but can be hand modified.
A60: Hazardous Materials Cost Details: | B60: Explanation | C60: Units | E60: Unit Cost/Rate | F60: Cost | G60: Escalated Cost | H60: Actual | I60: Difference | J60: Notes: | K60: Hazardous Materials Costing Help | O60: Total Years
A61: Pre-Construction Survey | B61: Improve $2.5-$5K, Dev $10-$25K, $2.50-$3.5/SF | C61: 1 | D61: Unit | E61: 0 | F61: =C61*E61 -> 0 | G61: =(F61*(1+$C$57))+(F61*$E$58) -> 0 | H61: 0 | I61: =G61-H61 -> 0 | K61: Most buildings older than 1979 will have a lot of remediation, | O61: =Q53 -> 0 | X61: How does the Hazardous Materials units reflective of the escalated construction cost?
A62: Plan and Monitoring | B62: $900-$1500 Per Day, More Depending on Distance | C62: 0 | D62: EA | E62: 0 | F62: =C62*E62 -> 0 | G62: =(F62*(1+$C$57))+(F62*$E$58) -> 0 | H62: 0 | I62: =G62-H62 -> 0 | K62: Most Buildings from 1980 on will have much less remediation due to EPA regulations that took place at the time. | X62: Hazardous materials is calculated by the square footage of any remodel costs
A63: Abatement/Removal - Improvement Projects | B63: Avg 2-6 Weeks (5 Day) Ranging From $5K-$150K | C63: 0 | D63: EA | E63: 0 | F63: =C63*E63 -> 0 | G63: =(F63*(1+$C$57))+(F63*$E$58) -> 0 | H63: 0 | I63: 0 | K63: The number of weeks of abatement depends entirely on the findings in the initial survey.
A64: Abatement/Removal - Development Projects | B64: Avg 7-16 Weeks (5 Day) Ranging From $150K-$1M | C64: 0 | D64: EA | E64: 0 | F64: =C64*E64 -> 0 | G64: =(F64*(1+$C$57))+(F64*$E$58) -> 0 | H64: 0 | I64: 0 | K64: Abatement activities on most IMPROVEMENT PROJECTS generally run from $5k-$150k based on the quantities found on the initial survey.
A65: Enter Hazardous Materials Cost Details | C65: 0 | D65: Unit | E65: 0 | F65: =C65*E65 -> 0 | G65: =(F65*(1+$C$57))+(F65*$E$58) -> 0 | H65: 0 | I65: 0 | K65: Abatement activities on most DEVELOPMENT PROJECTS generally run from $150k- $1M on based on the quantities found on the initial survey. | X65: SF of remodel cost | Z65: Jon Vance ask
C66: 0 | D66: Unit | E66: 0 | F66: =C66*E66 -> 0 | G66: =(F66*(1+$C$57))+(F66*$E$58) -> 0 | H66: 0 | I66: =G66-H66 -> 0 | K66: For more information or questions, contact Jon Vance at: | X66: SF of remodel cost | Z66: Jon Vance ask | AL66: 801-686-4422 | AM66: jvance@utah.gov
A67: Building Location HazMat Cost Increase Factor: | B67: =IF($F$1="Select County","Select County At Top of page",$F$1) -> Select County At Top of page | C67: =TCC -> 0 | D67: TCC | E67: ='Location Factors'!C6 -> 0 | F67: =IF(SUM(F61:F66)>0,(C67*E67),0) -> 0 | G67: =(F67*(1+$C$57))+(F67*$E$58) -> 0 | H67: 0 | I67: =G67-H67 -> 0 | X67: Still have not heard back from Jon Vance
A68: Total Hazardous Material Costs | F68: =SUM(F61:F67) -> 0 | G68: =SUM(G61:G67) -> 0 | H68: =SUM(H61:H67) -> 0 | I68: =G68-H68 -> 0
A70: Pre-Design/Planning Cost Details: | B70: Explanation | C70: Units | E70: Unit Cost/Rate | F70: Cost | G70: Units | H70: Actual | I70: Difference | J70: Notes:
A71: Feasibility Study / Planning Fund Reimbursement | B71: Enter Planning Fund Reimbursement Details | C71: 0 | D71: EA | E71: 0 | F71: =C71*E71 -> 0 | G71: ='Drop Downs'!K2 -> TCC = Total Const Cost | H71: 0 | I71: =F71-H71 -> 0 | X71: Historically, we have not calculated the design or programming fees off of the construction costs that include the utility connections / impact fees
A72: Programming | B72: Enter Programing Details | C72: =TCC -> 0 | D72: TCC | E72: 0 | F72: =C72*E72 -> 0 | G72: ='Drop Downs'!K3 -> EA = Each | H72: 0 | I72: =F72-H72 -> 0 | X72: Changed calculation to only use the Total Facility cost, site cost, and HPB costs, not including utilities
A73: Environmental Assessment | B73: Enter Environmental Assessment Details | C73: =TCC -> 0 | D73: TCC | E73: 0 | F73: 0 | G73: ='Drop Downs'!K4 -> SF = Square Feet | H73: 0 | I73: =F73-H73 -> 0 | X73: I'm not sure what the appropriate amount is here, but I know its no where near 1% - Maybe Taylor and Clint would have a better understanding
A74: Geotechnical Investigation/Surveys | B74: Enter Number of Borings ($3,000 - $5,000 Ea.) | C74: 0 | D74: EA | E74: 4000 | F74: 0 | G74: ='Drop Downs'!K5 -> LF = Lineal Feet | H74: 0 | I74: 0 | X74: total minus utility costs
A75: Geotechnical Ground Motion Study | B75: Enter Geotech Details | C75: 0 | D75: EA | E75: 0 | F75: =C75*E75 -> 0 | G75: ='Drop Downs'!K6 -> CF = Cubic Feet | H75: 0 | I75: 0 | X75: Geotech should be based off of borings and site requirements - not a percentage of the construction budget.
A76: Site Survey | B76: Enter Site Survey Details | C76: 0 | D76: Unit | E76: 0 | F76: =C76*E76 -> 0 | G76: ='Drop Downs'!K7 -> CY = Cubic Yards | H76: 0 | I76: 0 | X76: Changed to a per boring calculation with a default cost of $4K
A77: Marketing / Reimbursable | C77: 0 | D77: Unit | E77: 0 | F77: =C77*E77 -> 0 | G77: ='Drop Downs'!K8 -> Fx = Formula | H77: 0 | I77: 0 | X77: I'm not sure a location factor would be relevant outside of travel fees - we may want to discuss this with PMs.
H78: 0 | I78: 0
A79: Pre-Design Building Location Cost Increase Factor: | B79: =IF($F$1="Select County","Select County At Top of page",$F$1) -> Select County At Top of page | C79: =TCC -> 0 | D79: TCC | E79: ='Location Factors'!C7 -> 0 | F79: =IF(SUM(F71:F78)>0,(C79*E79),0) -> 0 | H79: 0 | I79: =F79-H79 -> 0 | X79: I agree, I added this because many PMs forgot to add travel fees and we had to add them after during review. Just trying to catch the stuff that gets forgotten
A80: Total Pre-Design/Planning Costs | F80: =SUM(F71:F79) -> 0 | H80: =SUM(H71:H79) -> 0 | I80: =F80-H80 -> 0
A82: Design Cost Details: | B82: Explanation | C82: Units | E82: Unit Cost/Rate | F82: Cost | H82: Actual | I82: Difference | J82: Notes:
A83: A/E Design Fees | B83: A&E Design Fees From A&E Calculator | C83: 1 | D83: EA | E83: =#REF! ->  | F83: =C83*E83 ->  | H83: 0 | I83: =F83-H83 -> 
A84: Enter Design Fee Details | C84: 0 | D84: EA | E84: 0 | F84: =C84*E84 -> 0 | H84: 0 | I84: =F84-H84 -> 0
C85: 0 | D85: Unit | E85: 0 | F85: 0 | H85: 0 | I85: 0
C86: 0 | D86: Unit | E86: 0 | F86: =C86*E86 -> 0 | H86: 0 | I86: =F86-H86 -> 0
A87: Total Design Costs | F87: =SUM(F83:F86) ->  | H87: =SUM(H83:H86) -> 0 | I87: =F87-H87 -> 
A89: Property Acquisition Cost Details: | B89: Explanation | C89: Units | E89: Unit Cost/Rate | F89: Cost | H89: Actual | I89: Difference | J89: Notes:
A90: Enter Property Acquisition Details | C90: 0 | D90: Unit | E90: 0 | F90: =C90*E90 -> 0 | H90: 0 | I90: =F90-H90 -> 0
C91: 0 | D91: Unit | E91: 0 | F91: =C91*E91 -> 0 | H91: 0 | I91: =F91-H91 -> 0
C92: 0 | D92: Unit | E92: 0 | F92: =C92*E92 -> 0 | H92: 0 | I92: 0
A93: Total Property Acquisition Costs | F93: =SUM(F90:F92) -> 0 | H93: =SUM(H90:H92) -> 0 | I93: =F94-H93 -> 0
A95: Furnishings & Equipment Costs Details: | B95: Explanation | C95: Units | E95: Unit Cost/Rate | F95: Cost | H95: Actual | I95: Difference | J95: Notes:
A96: Furnishings Details | C96: 0 | D96: Unit | E96: 0 | F96: =C96*E96 -> 0 | H96: 0 | I96: =F96-H96 -> 0
A97: Furnishings | B97: (3-4% of Total Construction Cost) | C97: =TCC -> 0 | D97: TCC | E97: 0.04 | F97: =C97*E97 -> 0 | H97: 0 | I97: 0
A98: Enter Furnishing Details | C98: 0 | D98: Unit | E98: 0 | F98: =C98*E98 -> 0 | H98: 0 | I98: 0
C99: 0 | D99: Unit | E99: 0 | F99: =C99*E99 -> 0 | H99: 0 | I99: 0
A100: Total Furnishings Costs | F100: =SUM(F96:F99) -> 0 | H100: =SUM(H96:H99) -> 0 | I100: 0
A101: Equipment Detail: | C101: 0 | D101: Unit | E101: 0 | F101: =C101*E101 -> 0 | H101: 0 | I101: 0
A102: Specialized Equipment | B102: (3-4% of Total Construction Cost) | C102: =TCC -> 0 | D102: TCC | E102: 0.04 | F102: 0 | H102: 0 | I102: 0
C103: 0 | D103: Unit | E103: 0 | F103: =C103*E103 -> 0 | H103: 0 | I103: 0
A104: Enter Equipment Details | C104: 0 | D104: Unit | E104: 0 | F104: 0 | H104: 0 | I104: 0
A105: Total Equipment Costs | F105: =SUM(F101:F104) -> 0 | H105: =SUM(H101:H104) -> 0 | I105: 0
A106: FF&E Design Costs | B106: (5% Of The Sum Of Furnishings And Equipment Totals) | C106: =F100+F105 -> 0 | D106: Fx | E106: 0.05 | F106: =C106*E106 -> 0 | H106: 0 | I106: 0
A107: Enter FF&E Details | C107: 0 | D107: Unit | E107: 0 | F107: =C107*E107 -> 0 | H107: 0 | I107: 0
C108: 0 | D108: Unit | E108: 0 | F108: =C108*E108 -> 0 | H108: 0 | I108: 0
A109: Total Furnishings & Equipment Costs | F109: =F100+F105+F106+F107+F108 -> 0 | H109: =SUM(H105:H108)+H100 -> 0 | I109: 0
A111: Utility Cost Details: | B111: Explanation | C111: Units | E111: Unit Cost/Rate | F111: Cost | H111: Actual | I111: Difference | J111: Notes:
A112: Water Utility Fee | C112: 0 | D112: EA | E112: 0 | F112: =C112*E112 -> 0 | H112: 0 | I112: =F112-H112 -> 0
A113: Sewer Utility Fee | C113: 0 | D113: EA | E113: 0 | F113: 0 | H113: 0 | I113: 0
A114: Electricity Utility Fee | C114: 0 | D114: EA | E114: 0 | F114: 0 | H114: 0 | I114: 0
A115: Storm Sewer Utility Fee | C115: 0 | D115: EA | E115: 0 | F115: 0 | H115: 0 | I115: 0
A116: Gas Connection Fees | C116: 0 | D116: EA | E116: 0 | F116: 0 | H116: 0 | I116: 0
A117: Connection Fees | C117: 0 | D117: Unit | E117: 0 | F117: 0 | H117: 0 | I117: 0
A118: Enter Utility Details | C118: 0 | D118: Unit | E118: 0 | F118: =C118*E118 -> 0 | H118: 0 | I118: 0
C119: 0 | D119: Unit | E119: 0 | F119: 0 | H119: 0 | I119: 0
A120: Total Utility Costs | F120: =SUM(F112:F119) -> 0 | H120: =SUM(H112:H119) -> 0 | I120: 0
A122: Information Technology Costs Details: | B122: Explanation | C122: Units | E122: Unit Cost/Rate | F122: Cost | H122: Actual | I122: Difference | J122: Notes: | L122: DTS Contact
A123: IT Equipment | B123: ($3-5/Sq. Ft or 2% of Total Construction Cost) | C123: =TCC -> 0 | D123: TCC | E123: 0.02 | F123: =C123*E123 -> 0 | G123: =F123/$C$25 ->  | H123: 0 | I123: =F123-H123 -> 0 | L123: Greg Jackson | X123: This may be easier to identify as a per square foot cost
A124: AV Equipment Excluding Conduit | B124: ($15/SF or 1% of Total Construction Cost) | C124: =TCC -> 0 | D124: TCC | E124: 0.01 | F124: 0 | H124: 0 | I124: 0 | X124: These ones that are a per sq. ft cost versus a percentage, have you done the math to compare the difference?
A125: DAS Emergency Responder System | B125: ($2-3/Sq. Ft or 0.3% of Total Construction Cost) | C125: =TCC -> 0 | D125: TCC | E125: 0.003 | F125: 0 | H125: 0 | I125: 0 | X125: Added a $/SF on the side for comparison. Trying to keep all of the calculations we can using the same units
A126: DAS Cell Phone Repeater | B126: ($2-3/Sq. Ft or 0.3% of Total Construction Cost) | C126: =TCC -> 0 | D126: TCC | E126: 0.003 | F126: 0 | H126: 0 | I126: 0 | X126: Do we want to change the $/SF number or the % to make them match up better?
A127: Enter IT Details | C127: 0 | D127: Unit | E127: 0 | F127: =C127*E127 -> 0 | H127: 0 | I127: 0
C128: 0 | D128: Unit | E128: 0 | F128: 0 | H128: 0 | I128: 0
A129: Total Information Technology Costs | F129: =SUM(F123:F128) -> 0 | H129: =SUM(H123:H128) -> 0 | I129: 0
A131: Utah Art Cost Details | B131: Explanation | C131: Units | E131: Manual Override | F131: Cost | H131: Actual | I131: Difference | J131: Notes:
A132: Is Utah Art Required? Select YES OR NO ► | C132: Choose One | E132: 0 | F132: =IF(E132>0,E132,IF(C132<>"YES",0,IF(C132="YES",IF(G48*0.01>200000,200000,G48*D133)))) -> 0 | H132: =SUM(H126:H131) -> 0 | I132: =F132-H132 -> 0
C133: To supersede 1.0% auto-calculation change the percentage or enter Manual Override Amount above arrows: | D133: 0.01 | E133: ▲ ▲ ▲
A135: Testing & Inspection Costs Details: | B135: Explanation | C135: Units | E135: Unit Cost/Rate | F135: Cost | H135: Actual | I135: Difference | J135: Notes:
A136: Building Code Inspection | C136: =TCC -> 0 | D136: TCC | E136: 0.006 | F136: =C136*E136 -> 0 | H136: 0 | I136: =F136-H136 -> 0 | X136: There is a cost for the FM review that we need to capture.
A137: Material Testing | C137: =TCC -> 0 | D137: TCC | E137: 0.002 | F137: 0 | H137: 0 | I137: 0 | X137: I just need to know what we want to carry for a hard number or a percentage.
A138: Special Inspections | C138: =TCC -> 0 | D138: TCC | E138: 0.004 | F138: 0 | H138: 0 | I138: 0 | X138: Sent Tom an email 5-16-22 asking for input
A139: Fire Marshal Review - General Review, Fire Suppression Review, and Fire Alarm Review | C139: =TGSF -> 0 | D139: SF | E139: 0.066 | F139: =C139*E139 -> 0 | H139: 0 | I139: 0 | X139: Tom's response was "They are charging 2.2 cents per square foot for general review, Fire Suppression review and Fire alarm review respectively. This equates to most projects to a 6.6 cent per square foot fee for their review."
A140: Enter Testing and Inspection Details | C140: 0 | D140: Unit | E140: 0 | F140: =C140*E140 -> 0 | H140: 0 | I140: 0
C141: 0 | D141: Unit | E141: 0 | F141: =C141*E141 -> 0 | H141: 0 | I141: 0
A142: Building Location Inspection Cost Increase Factor: | B142: =IF($F$1="Select County","Select County At Top of page",$F$1) -> Select County At Top of page | C142: =TCC -> 0 | D142: TCC | E142: ='Location Factors'!C9 -> 0 | F142: =IF(SUM(F136:F141)>0,(C142*E142),0) -> 0 | H142: 0 | I142: 0
A143: Total Testing & Inspection Costs | F143: =SUM(F136:F142) -> 0 | H143: =SUM(H136:H142) -> 0 | I143: 0
A145: Moving & Occupancy Costs Details: | B145: Explanation | C145: Units | E145: Unit Cost/Rate | F145: Cost | H145: Actual | I145: Difference | J145: Notes:
A146: Enter Moving & Occupancy Details | B146: (Moving & Occupancy Costs 0.2% - 0.5%) | C146: =TCC -> 0 | D146: TCC | E146: 0.002 | F146: =C146*E146 -> 0 | H146: 0 | I146: =F146-H146 -> 0 | X146: Should this be 2% or 0.2%???
C147: 0 | D147: Unit | E147: 0 | F147: =C147*E147 -> 0 | H147: 0 | I147: =F147-H147 -> 0
C148: 0 | D148: Unit | E148: 0 | F148: =C148*E148 -> 0 | H148: 0 | I148: =F148-H148 -> 0
A149: Total Moving & Occupancy Costs | F149: =SUM(F146:F148) -> 0 | H149: =SUM(H146:H148) -> 0 | I149: =F149-H149 -> 0
K150: Travel Hotel $ + $50/Day for Meals and Taxes | X150: I would prefer this to be a unit cost amount and not a percentage
A151: DFCM Management Cost Details: | B151: Explanation | C151: Units | E151: Unit Cost | F151: Cost | G151: Units | H151: Actual | I151: Difference | J151: Notes: | K151: PM Travel - Project Duration | X151: Or if we had a calculation that went off of the project duration that could calculate one trip every two weeks that the PM would estimate the per trip cost?
A152: Is Project 100% State Funded? Yes, No, Partially ► | C152: Choose One | G152: =G71 -> TCC = Total Const Cost | H152: =SUM(H146:H151) -> 0 | I152: =F152-H152 -> 0 | K152: Bid Date to Estimated Completion Date | X152: Changed to total Duration from bid to estimated project completion, then calculated how many 2 week periods there are and used that to calculate trips, base on hotel cost +$50 for meals and taxes
B153: =IF(C152="Partially","If Partial, Enter Portion That Is State Agency Funded above arrows:"," ") ->  | E153: =IF(C152="Partially","▲ ▲ ▲","") ->  | G153: EA = Each | H153: 0 | I153: 0 | K153: =ROUNDUP(C55-C54,2) -> 0 | L153: Days
A154: Enter DFCM Management Details | B154: DFCM Management Fee | C154: =IF(C152="NO",'DFCM Fee Schedule'!C4,IF(C152="Partially",'DFCM Fee Schedule'!C20,0)) -> 0 | D154: Per DFCM Fee Schedule | F154: =IF(C152="No",'DFCM Fee Schedule'!B4,IF(C152="Yes",0,IF(C152="Partially",'DFCM Fee Schedule'!B20,0))) -> 0 | G154: SF = Square Feet | H154: 0 | I154: 0 | K154: =ROUNDUP(K153/365,2) -> 0 | L154: Years
C155: 0 | D155: Unit | E155: 0 | F155: =C155*E155 -> 0 | G155: LF = Lineal Feet | H155: 0 | I155: 0 | K155: =ROUNDUP(K154*12,2) -> 0 | L155: Months
A156: =K157 -> 0 | B156: =IF($F$1="Select County","Select County At Top of page",$F$1) -> Select County At Top of page | C156: 1 | D156: EA | E156: ='Location Factors'!C10 -> 0 | F156: =IF(SUM(F154:F155)>0,(A156*C156*E156),0) -> 0 | G156: CF = Cubic Feet | H156: 0 | I156: 0 | K156: =ROUNDUP(K154*52,2) -> 0 | L156: Weeks
A157: Total DFCM Management Costs | F157: =SUM(F152:F156) -> 0 | G157: CY = Cubic Yards | H157: =SUM(H152:H156) -> 0 | I157: 0 | K157: =ROUNDUP(K154*26,0) -> 0 | L157: 2 Weeks (Travel to Jobsite every 2 weeks, rounded up)
G158: Fx = Formula
A159: User Fee Cost Details: | B159: Explanation | C159: Units | E159: Unit Cost | F159: Cost | H159: Actual | I159: Difference | J159: Notes:
A160: =IF($B$3="University Of Utah (UofU)","PDC Management Fee (UofU Only)","") ->  | B160: =IF($B$3="University Of Utah (UofU)","Is This A Project Or A Study? ►","") ->  | C160: Choose One | D160: =IF($B$3="University Of Utah (UofU)","Non State Funded Amount","") ->  | F160: =IF($B$3="University Of Utah (UofU)",F209,0) -> 0 | X160: The UofU PDC Fee Schedule doesn't seem to calculating correctly.
A161: =IF($B$3="University Of Utah (UofU)","Adjustment For Non State Funded Portion Of Project","") ->  | B161: =IF($B$3="University Of Utah (UofU)","Ensure Non-State Funding Is Entered Below","") ->  | D161: =IF($B$3="University Of Utah (UofU)","PDC Management Fee","") ->  | F161: =IF($B$3="University Of Utah (UofU)",'UofU PDC Fee Schedule'!$B$7,0) -> 0 | H161: 0 | I161: =F161-H161 -> 0 | X161: UofU fees only calculate if UofU is selected as the agency
A162: Enter User Fee Details | C162: 0 | D162: Unit | E162: 0 | F162: =C162*E162 -> 0 | H162: 0 | I162: =F162-H162 -> 0 | X162: I have it taking the Non State funded amount to the PDC table and calculating the about from it. Is that how you understand it should work?
C163: 0 | D163: Unit | E163: 0 | F163: =C163*E163 -> 0 | H163: 0 | I163: =F163-H163 -> 0
A164: Total User Fee Costs | F164: =SUM(F161:F163) -> 0 | H164: =SUM(H161:H163) -> 0 | I164: =F164-H164 -> 0 | K164: =K79 -> 
A166: HPBS Commissioning Cost Details: | B166: Explanation | C166: Units | E166: Unit Cost | F166: Cost
A167: High Performance Building Standard | B167: HPBS Consultant Fees | E167: Building Complexity Is Type: | F167: =#REF! ->  | H167: Actual | I167: Difference | J167: Notes: | W167: =IF(C168*E168=10000,10000,IF(C168*E168=15000,15000,C168*E168)) -> 
A168: Energy Study EnE Fee | B168: =IF($F$167="A",'HPBS Consultants'!B6,IF($F$167="B",'HPBS Consultants'!C6,IF($F$167="C",'HPBS Consultants'!D6,IF($F$167="D",'HPBS Consultants'!E6,IF($F$167="E",'HPBS Consultants'!F6,0))))) ->  | C168: =TCC -> 0 | D168: TCC | E168: =IF($F$167="A","$10,000",IF($F$167="B","$15,000",IF($F$167="C",'HPBS Consultants'!D2,IF($F$167="D",'HPBS Consultants'!E2,IF($F$167="E",'HPBS Consultants'!F2,0))))) ->  | F168: =IF(E168="$10,000",10000,IF(E168="$15,000",15000,IF(C168*E168<15000,15000,C168*E168))) ->  | H168: =SUM(H162:H167) -> 0 | I168: =F168-H168 ->  | X168: We need a way to add budget to the energy study for those Universities that require LEED.
A169: Exterior Envelope BECxA Fee | B169: =IF($F$167="A",'HPBS Consultants'!B7,IF($F$167="B",'HPBS Consultants'!C7,IF($F$167="C",'HPBS Consultants'!D7,IF($F$167="D",'HPBS Consultants'!E7,IF($F$167="E",'HPBS Consultants'!F7,0))))) ->  | C169: =TCC -> 0 | D169: TCC | E169: =IF($F$167="A","$20,000",IF($F$167="B",'HPBS Consultants'!C3,IF($F$167="C",'HPBS Consultants'!D3,IF($F$167="D",'HPBS Consultants'!E3,IF($F$167="E",'HPBS Consultants'!F3,0))))) ->  | F169: =IF(E169="$20,000",20000,IF(C169*E169>20000,C169*E169,20000)) ->  | H169: 0 | X169: What fee, or percentage or cost do you want to carry for Lead?
A170: Enhanced Commissioning CxA Fee | B170: =IF($F$167="A",'HPBS Consultants'!B8,IF($F$167="B",'HPBS Consultants'!C8,IF($F$167="C",'HPBS Consultants'!D8,IF($F$167="D",'HPBS Consultants'!E8,IF($F$167="E",'HPBS Consultants'!F8,0))))) ->  | C170: =TCC -> 0 | D170: TCC | E170: =IF($F$167="A",'HPBS Consultants'!B4,IF($F$167="B",'HPBS Consultants'!C4,IF($F$167="C",'HPBS Consultants'!D4,IF($F$167="D",'HPBS Consultants'!E4,IF($F$167="E",'HPBS Consultants'!F4,0))))) ->  | F170: =C170*E170 ->  | H170: 0 | X170: Added Line for Leed, using percentages I found online, do you want to change?
A171: Energy Study For LEED Projects | B171: Choose LEED Level | C171: =TCC -> 0 | D171: TCC | E171: =IF(B171="Choose LEED Level",'Drop Downs'!H2,IF(B171="LEED Certified – 0-2.5%",'Drop Downs'!H3,IF(B171="LEED Silver – 0-3.3%",'Drop Downs'!H4,IF(B171="LEED Gold – 0.3-5.0%",'Drop Downs'!H5,IF(B171="LEED Platinum – 4.5-8.5%",'Drop Downs'!H6,"0%"))))) -> 0 | F171: =C171*E171 -> 0 | H171: 0 | I171: 0
A172: Enter HPBS Details | C172: 0 | D172: Unit | E172: 0 | F172: =C172*E172 -> 0 | H172: 0 | I172: 0
A173: Consultant Building Location Cost Increase Factor: | B173: =IF($F$1="Select County","Select County At Top of page",$F$1) -> Select County At Top of page | C173: =TCC -> 0 | D173: TCC | E173: ='Location Factors'!C11 -> 0 | F173: =IF(SUM(F168:F172)>0,(C173*E173),0) ->  | H173: 0
A174: Total HPBS Commissioning Costs | F174: =SUM(F168:F173) ->  | H174: =SUM(H168:H173) -> 0
A176: Other Costs: | B176: Explanation | C176: Units | E176: Unit Cost | F176: Cost | H176: Actual | I176: Difference | J176: Notes:
A177: Keying | B177: 0.15%-0.3% | C177: =TCC -> 0 | D177: TCC | E177: 0.003 | F177: =C177*E177 -> 0 | H177: =SUM(H171:H176) -> 0 | I177: =F177-H177 -> 0
A178: Building Signage | B178: 0.005 | C178: =TCC -> 0 | D178: TCC | E178: 0.005 | F178: 0 | H178: 0 | I178: 0
A179: Interior Signage | B179: 0.3% - 0.5% | C179: =TCC -> 0 | D179: TCC | E179: 0.005 | F179: 0 | H179: 0 | I179: 0
A180: Branding | B180: 0.002 | C180: =TCC -> 0 | D180: TCC | E180: 0.002 | F180: 0 | H180: 0 | I180: 0
A181: Enter Other Cost Details | C181: 0 | D181: TCC | E181: 0 | F181: 0 | H181: 0 | I181: 0
C182: 0 | D182: Unit | E182: 0 | F182: 0 | H182: 0 | I182: 0
A183: Total Other Costs | F183: =SUM(F177:F182) -> 0 | H183: =SUM(H177:H182) -> 0 | I183: 0
A185: Contingency | B185: Explanation | C185: Units | E185: Unit Cost/Rate | F185: Cost | H185: Actual | I185: Difference | J185: Notes:
A186: Contingency | B186: ='Cap Devel CBE Summary'!B24 ->  | C186: 1 | D186: EA | E186: ='Cap Devel CBE Summary'!C24 -> 0 | F186: =C186*E186 -> 0 | H186: 0 | I186: =F186-H186 -> 0 | X186: Should this be 2% or 0.2%???
A187: Total Contingency Cost | F187: =SUM(F186:F186) -> 0 | H187: =SUM(H186:H186) -> 0 | I187: =F187-H187 -> 0
A189: Builder's Risk Insurance | B189: Explanation | C189: Units | E189: Unit Cost/Rate | F189: Cost | H189: Actual | I189: Difference | J189: Notes:
A190: Builder's Risk Insurance | B190: 0.15% of Construction Budget | C190: 1 | D190: EA | E190: ='Cap Devel CBE Summary'!C26 -> 0 | F190: =C190*E190 -> 0 | H190: 0 | I190: =F190-H190 -> 0 | X190: Should this be 2% or 0.2%???
A191: Total Builder's Risk Insurance Costs | F191: =SUM(F190:F190) -> 0 | H191: =SUM(H190:H190) -> 0 | I191: =F191-H191 -> 0
A193: Legal Services | B193: Explanation | C193: Units | E193: Unit Cost/Rate | F193: Cost | H193: Actual | I193: Difference | J193: Notes:
A194: Legal Services | B194: 0.05% of Construction Budget | C194: 1 | D194: EA | E194: ='Cap Devel CBE Summary'!C27 -> 0 | F194: =C194*E194 -> 0 | H194: 0 | I194: =F194-H194 -> 0 | X194: Should this be 2% or 0.2%???
A195: Total Legal Services Cost | F195: =SUM(F194:F194) -> 0 | H195: =SUM(H194:H194) -> 0 | I195: =F195-H195 -> 0
H196: Actual | I196: Difference
A197: Total Construction Costs & Soft Costs Before Deducting Previous State Funding and Non State Funding Sources | G197: =G48+G68+F80+F87+F93+F109+F120+F129+F132++F143+F149+F157+F164+F174+F183+F187+F191+F195-F203-F209 ->  | H197: =H15+H35+H53+H67+H73+H98+H109+H127+H130+H141+H147+H155+H162+H172+H183+H187+H191+H195 ->  | I197: =I48+I68+I80+I87+I93+I109+I120+I129+I132++I143+I149+I157+I164+I174+I183+I187+I191+I195 -> 
A199: Previous State Funding: | B199: Explanation | C199: Units | E199: Unit Cost | F199: Cost | H199: Actual | I199: Difference | J199: Notes:
A200: Only show state appropriated funding & include costs covered by that funding in appropriate category above. | D200: EA | E200: 0 | F200: =C200*E200 -> 0 | H200: 0 | I200: =F200-H200 -> 0
A201: Enter Previous State Funding Here | B201: Enter Previous State Funding Details Here | C201: 0 | D201: EA | E201: 0 | F201: =C201*E201 -> 0 | H201: 0 | I201: =F201-H201 -> 0
C202: 0 | D202: Unit | E202: 0 | F202: =C202*E202 -> 0 | H202: 0 | I202: =F202-H202 -> 0
A203: Total Previous State Funding | F203: =SUM(F200:F202) -> 0 | H203: =SUM(H200:H202) -> 0 | I203: =F203-H203 -> 0
A205: Other Funding Sources: | B205: (List Each Source And Give Details Of Each Source): | C205: Units | E205: Unit Cost | F205: Cost | H205: Actual | I205: Difference | J205: Notes:
A206: Enter Non State Funded Agency Source Here | B206: Enter Non State Funded Agency Details Here | C206: 1 | D206: EA | E206: 0 | F206: =C206*E206 -> 0 | H206: 0 | I206: =F206-H206 -> 0 | X206: How is this calculating at $8,000,000 if we already identified the State funding portion? It may be easier to
C207: 0 | D207: Unit | E207: 0 | F207: =C207*E207 -> 0 | H207: 0 | I207: =F207-H207 -> 0 | X207: calculate the Agency funding being provided and then have the form auto calculate the required amount remaining to
C208: 0 | D208: Unit | E208: 0 | F208: =C208*E208 -> 0 | H208: 0 | I208: =F208-H208 -> 0 | X208: be State funding. Does that make sense?
A209: Total Other Funding | F209: =SUM(F206:F208) -> 0 | H209: =SUM(H207) -> 0 | I209: =F209-H209 -> 0 | X209: Sorry, the $8,000,000 was a not a formula, it was hand typed in from a previous revision
X210: Don't we already get the total less agency funding on the summary page?
H211: Actual | I211: Difference | J211: Notes:
A212: OFFICIAL UTAH DFCM CBE FORM V2.09 Last Revision: 2-14-2023 | B212: Total Construction Costs & Soft Costs Less Previous State Funding And Non State Funding | G212: =TCC+G68+F80+F87+F93+F109+F120+F129+F132+F143+F149+F157+F164+F174+F183+F187+F191+F195-F203-F209 ->  | H212: =H197-H203-H209 ->  | I212: =I197-I203-I209 -> 

Sheet DFCM Fee Schedule (hidden)
A1: Non-State/Agency Funded DFCM Management Fee | D1: DFCM’s Approved FY2023 Rates
A2: 100% Non-State/Agency Funded DFCM Management Fee
A3: Escalated Total Construction Cost: | B3: ='Cap Devel CBE Details'!G48 -> 0
A4: Total DFCM Management Fee: | B4: =(SUM(G6:G11)) -> 0 | C4: =B4/B3 -> 
A5: Lower Limit of Range | B5: Upper Limit of Range | C5: Fee | D5: Fixed Base $ Amount | F5: % Add | G5: DFCM Fee
A6: 1 | B6: 99999 | C6: 4% ($3,999 max) | D6: 0 | E6: + | F6: 0.04 | G6: =IF(OR($B$3<B6,$B$3=B6),$B$3*F6,0) -> 0
A7: 100000 | B7: 499999 | C7: $4,000 + 1.8% over $100,000 ($11,200 max) | D7: 4000 | E7: + | F7: 0.018 | G7: =IF(AND($B$3>B6,OR($B$3<B7,$B$3=B7)),D7+(($B$3-A7)*F7),0) -> 0
A8: 500000 | B8: 2499999 | C8: $11,200 + 0.9% over $500,000 ($29,200 max) | D8: 11200 | E8: + | F8: 0.009 | G8: =IF(AND($B$3>B7,OR($B$3<B8,$B$3=B8)),D8+(($B$3-A8)*F8),0) -> 0
A9: 2500000 | B9: 9999999 | C9: $29,200 + 0.6% over $2,500,000 ($74,200 max) | D9: 29200 | E9: + | F9: 0.006 | G9: =IF(AND($B$3>B8,OR($B$3<B9,$B$3=B9)),D9+(($B$3-A9)*F9),0) -> 0
A10: 10000000 | B10: 49999999 | C10: $74,200 + 0.18% over $10,000,000 ($146,200 max) | D10: 74200 | E10: + | F10: 0.0018 | G10: =IF(AND($B$3>B9,OR($B$3<B10,$B$3=B10)),D10+(($B$3-A10)*F10),0) -> 0
A11: 50000000 | B11: + Up | C11: $146,200 + 0.12% over $50,000,000 ($206,200 max at $100M) | D11: 146200 | E11: + | F11: 0.0012 | G11: =IF($B$3>B10,D11+(($B$3-A11)*F11),0) -> 0
A12: Actual Costs are based on the Construction Contract, once established.
A18: Partial Non-State/Agency Funded DFCM Management Fee
A19: State Agency Funded Portion | B19: ='Cap Devel CBE Details'!E152 -> 0
A20: Total DFCM Management Fee: | B20: =SUM(G22:G27) -> 0 | C20: =B20/B19 -> 
A21: Lower Limit of Range | B21: Upper Limit of Range | C21: Fee | D21: Fixed Base $ Amount | F21: % Add | G21: DFCM Fee
A22: 1 | B22: 99999 | C22: =C6 -> 4% ($3,999 max) | D22: =D6 -> 0 | E22: + | F22: =F6 -> 0.04 | G22: =IF(OR($B$19<B22,$B$19=B22),$B$19*F22,0) -> 0
A23: 100000 | B23: 499999 | C23: =C7 -> $4,000 + 1.8% over $100,000 ($11,200 max) | D23: 4000 | E23: + | F23: =F7 -> 0.018 | G23: =IF(AND($B$19>B22,OR($B$19<B23,$B$19=B23)),D23+(($B$19-A23)*F23),0) -> 0
A24: 500000 | B24: 2499999 | C24: $11,200 + 0.9% over $500,000 ($29,200 max) | D24: 11200 | E24: + | F24: 0.009 | G24: =IF(AND($B$19>B23,OR($B$19<B24,$B$19=B24)),D24+(($B$19-A24)*F24),0) -> 0
A25: 2500000 | B25: 9999999 | C25: $29,200 + 0.6% over $2,500,000 ($74,200 max) | D25: 29200 | E25: + | F25: 0.006 | G25: =IF(AND($B$19>B24,OR($B$19<B25,$B$19=B25)),D25+(($B$19-A25)*F25),0) -> 0
A26: 10000000 | B26: 49999999 | C26: $74,200 + 0.18% over $10,000,000 ($146,200 max) | D26: 74200 | E26: + | F26: 0.0018 | G26: =IF(AND($B$19>B25,OR($B$19<B26,$B$19=B26)),D26+(($B$19-A26)*F26),0) -> 0
A27: 50000000 | B27: + Up | C27: =C11 -> $146,200 + 0.12% over $50,000,000 ($206,200 max at $100M) | D27: =D11 -> 146200 | E27: + | F27: 0.0012 | G27: =IF($B$19>B26,D27+(($B$19-A27)*F27),0) -> 0
A28: Actual Costs are based on the Construction Contract, once established.

Sheet HPBS Consultants (hidden)
A1: HPBS Consultants | B1: Schedule A | C1: Schedule B | D1: Schedule C | E1: Schedule D | F1: Schedule E
A2: EnE fee | B2: 10000 | C2: 15000 | D2: 0.001 | E2: 0.0015 | F2: 0.0022
A3: BECxA fee | B3: 20000 | C3: 0.0015 | D3: 0.002 | E3: 0.002 | F3: 0.0025
A4: CxA fee | B4: 0.005 | C4: 0.0075 | D4: 0.01 | E4: 0.0125 | F4: 0.015
A6: EnE fee | B6: $5,000 - $10,000 Quantitative Only | C6: $8,000 - $15,000 Qualitative Only | D6: The Greater of 0.05% - 0.1% or $15,000 | E6: The Greater of 0.1% - 0.15% or $15,000 | F6: The Greater of 0.15% - 0.22% or $15,000
A7: BECxA fee | B7: $10,000 - $20,000 | C7: The Greater of 0.1% - 0.15% or $20,000 | D7: The Greater of 0.15% - 0.2% or $20,000 | E7: The Greater of 0.15%-0.2% or $20,000 | F7: The Greater of 0.2% - 0.25% or $20,000 | I7: Changes from Fee Schedule as per Matt Boyer 7-27-2022
A8: CxA fee | B8: 0.3% - 0.5% | C8: 0.5% - 0.75% | D8: 0.75% - 1% | E8: 1% - 1.25% | F8: 1% - 1.5%

Sheet Contingency (hidden)
C1: Contingency Calculator
A2: Contingency | B2: % | C2: Construction Cost | D2: Contingency | G2: Const Value | H2: New | I2: Remodel
A3: New | B3: =VLOOKUP(C3,G3:I43,2) -> 0.065 | C3: =IF('Cap Devel CBE Details'!G16=0,0,IF('Cap Devel CBE Details'!G23=0,'Cap Devel CBE Details'!G48,'Cap Devel CBE Details'!G48-'Cap Devel CBE Details'!G23)) -> 0 | D3: =B3*C3 -> 0 | F3: 1 | G3: 0 | H3: 0.065 | I3: 0.095
A4: Remodel | B4: =VLOOKUP(C4,G3:I43,3) -> 0.095 | C4: =IF('Cap Devel CBE Details'!G16=0,'Cap Devel CBE Details'!G48,'Cap Devel CBE Details'!G23) -> 0 | D4: =B4*C4 -> 0 | F4: 2 | G4: 250001 | H4: 0.064 | I4: =+I3-0.0025 -> 0.0925
A5: Total | B5: =D5/C5 ->  | C5: =(SUM(C3:C4)) -> 0 | D5: =(SUM(D3:D4)) -> 0 | F5: 3 | G5: 500001 | H5: 0.063 | I5: =+I4-0.0025 -> 0.09
F6: 4 | G6: 750001 | H6: 0.062 | I6: =+I5-0.0025 -> 0.0875
F7: 5 | G7: 1000001 | H7: 0.061 | I7: =+I6-0.0025 -> 0.085
F8: 6 | G8: 1250001 | H8: 0.06 | I8: 0.084
F9: 7 | G9: 1500001 | H9: 0.0595 | I9: 0.083
F10: 8 | G10: 1750001 | H10: 0.059 | I10: 0.082
F11: 9 | G11: 2000001 | H11: 0.0585 | I11: 0.081
F12: 10 | G12: 2250001 | H12: 0.058 | I12: 0.08
F13: 11 | G13: 2500001 | H13: 0.0575 | I13: 0.079
F14: 12 | G14: 2750001 | H14: 0.057 | I14: 0.078
F15: 13 | G15: 3000001 | H15: 0.0565 | I15: 0.077
F16: 14 | G16: 3250001 | H16: 0.056 | I16: 0.076
F17: 15 | G17: 3500001 | H17: 0.0555 | I17: 0.075
F18: 16 | G18: 3750001 | H18: 0.055 | I18: 0.074
F19: 17 | G19: 4000001 | H19: 0.0545 | I19: 0.073
F20: 18 | G20: 4250001 | H20: 0.054 | I20: 0.072
F21: 19 | G21: 4500001 | H21: 0.0535 | I21: 0.071
F22: 20 | G22: 4750001 | H22: 0.053 | I22: 0.07
F23: 21 | G23: 5000001 | H23: 0.0525 | I23: 0.0695
F24: 22 | G24: 5250001 | H24: 0.052 | I24: 0.069
F25: 23 | G25: 5500001 | H25: 0.0515 | I25: 0.0685
F26: 24 | G26: 5750001 | H26: 0.051 | I26: 0.068
F27: 25 | G27: 6000001 | H27: 0.0505 | I27: 0.0675
F28: 26 | G28: 6250001 | H28: 0.05 | I28: 0.067
F29: 27 | G29: 6500001 | H29: 0.0495 | I29: 0.0665
F30: 28 | G30: 6750001 | H30: 0.049 | I30: 0.066
F31: 29 | G31: 7000001 | H31: 0.0485 | I31: 0.0655
F32: 30 | G32: 7250001 | H32: 0.048 | I32: 0.065
F33: 31 | G33: 7500001 | H33: 0.0475 | I33: 0.0645
F34: 32 | G34: 7750001 | H34: 0.047 | I34: 0.064
F35: 33 | G35: 8000001 | H35: 0.0465 | I35: 0.0635
F36: 34 | G36: 8250001 | H36: 0.046 | I36: 0.063
F37: 35 | G37: 8500001 | H37: 0.046 | I37: 0.0625
F38: 36 | G38: 8750001 | H38: 0.0455 | I38: 0.062
F39: 37 | G39: 9000001 | H39: 0.0455 | I39: 0.0615
F40: 38 | G40: 9250001 | H40: 0.0455 | I40: 0.061
F41: 39 | G41: 9500001 | H41: 0.045 | I41: 0.0605
F42: 40 | G42: 9750001 | H42: 0.045 | I42: 0.06
F43: 41 | G43: 10000001 | H43: 0.045 | I43: 0.06

Sheet Location Factors (hidden)
E1: Choose County | F1: Building Location Cost Increase | G1: HazMat Building Location Cost Increase | H1: Pre-Design Location Cost Increase | I1: A/E Design Location Cost Increase | J1: Inspection Location Cost Increase | K1: DFCM PM Travel Cost Increase | L1: Consultant Location Cost Increase | O1: Select County | P1: Building Location Cost Increase Factor | Q1: HazMat Building Location Cost Increase Factor | R1: Pre-Design Location Cost Increase Factor | S1: A/E Design Location Cost Increase Factor | T1: Inspection Location Cost Increase Factor | U1: DFCM PM Travel Hotel & Food Per Diem Rates | V1: Consultant Location Cost Increase Factor | AA1: Inspection Location Cost Increase Factor
A2: Const Cost: | B2: ='Cap Devel CBE Details'!G48 -> 0 | E2: Beaver County | F2: =$B$2*P2 -> 0 | G2: =$B$2*Q2 -> 0 | H2: =$B$2*R2 -> 0 | I2: =$B$2*S2 -> 0 | J2: =$B$2*T2 -> 0 | K2: ='Cap Devel CBE Details'!$A$156*'Cap Devel CBE Details'!$C$156*U2 -> 0 | L2: =$B$2*V2 -> 0 | O2: Beaver County | P2: 0.0375 | Q2: 7e-05 | R2: 7e-05 | S2: 0.0001 | T2: 0.0001 | U2: =P37 -> 125 | V2: 0.0001 | Z2: 0.015 | AA2: 0.025
A3: GSF: | B3: ='Cap Devel CBE Details'!C25 -> 0 | E3: Box Elder County | F3: 0 | G3: 0 | H3: 0 | I3: 0 | J3: 0 | K3: ='Cap Devel CBE Details'!$A$156*'Cap Devel CBE Details'!$C$156*U3 -> 0 | L3: 0 | O3: Box Elder County | P3: 0.0125 | Q3: 2e-05 | R3: 2e-05 | S3: 3e-05 | T3: 3e-05 | U3: =P38 -> 140 | V3: 3e-05 | Z3: 0 | AA3: 0.015
A4: County: | B4: ='Cap Devel CBE Details'!F1 -> Select County | C4: Factor | E4: Cache County | F4: 0 | G4: 0 | H4: 0 | I4: 0 | J4: 0 | K4: ='Cap Devel CBE Details'!$A$156*'Cap Devel CBE Details'!$C$156*U4 -> 0 | L4: 0 | O4: Cache County | P4: 0.0025 | Q4: 3e-05 | R4: 3e-05 | S4: 5e-05 | T4: 5e-05 | U4: =P39 -> 140 | V4: 5e-05 | Z4: 0 | AA4: 0.01
A5: Building Location Cost Increase Factor: | C5: =VLOOKUP($B$4,$O$2:$V$31,2) -> 0 | D5: =$B$2*C5 -> 0 | E5: Carbon County | F5: 0 | G5: 0 | H5: 0 | I5: 0 | J5: 0 | K5: ='Cap Devel CBE Details'!$A$156*'Cap Devel CBE Details'!$C$156*U5 -> 0 | L5: 0 | O5: Carbon County | P5: 0.0125 | Q5: 4e-05 | R5: 4e-05 | S5: 6e-05 | T5: 6e-05 | U5: =P40 -> 125 | V5: 6e-05 | Z5: 0.005 | AA5: 0.015
A6: HazMat Building Location Cost Increase Factor: | C6: =VLOOKUP($B$4,$O$2:$V$31,3) -> 0 | D6: =$B$2*C6 -> 0 | E6: Daggett County | F6: 0 | G6: 0 | H6: 0 | I6: 0 | J6: 0 | K6: ='Cap Devel CBE Details'!$A$156*'Cap Devel CBE Details'!$C$156*U6 -> 0 | L6: 0 | O6: Daggett County | P6: 0.05 | Q6: 6e-05 | R6: 6e-05 | S6: 9e-05 | T6: 9e-05 | U6: 125 | V6: 9e-05 | Z6: 0 | AA6: 0
A7: Pre-Design Location Cost Increase Factor: | C7: =VLOOKUP($B$4,$O$2:$V$31,4) -> 0 | D7: 0 | E7: Davis County | F7: 0 | G7: 0 | H7: 0 | I7: 0 | J7: 0 | K7: ='Cap Devel CBE Details'!$A$156*'Cap Devel CBE Details'!$C$156*U7 -> 0 | L7: 0 | O7: Davis County | P7: 0 | Q7: 1e-05 | R7: 1e-05 | S7: 1e-05 | T7: 1e-05 | U7: 150 | V7: 1e-05 | Z7: 0.02 | AA7: 0.03
A8: A/E Design Location Cost Increase Factor: | C8: =VLOOKUP($B$4,$O$2:$V$31,5) -> 0 | D8: 0 | E8: Duchesne County | F8: 0 | G8: 0 | H8: 0 | I8: 0 | J8: 0 | K8: ='Cap Devel CBE Details'!$A$156*'Cap Devel CBE Details'!$C$156*U8 -> 0 | L8: 0 | O8: Duchesne County | P8: 0.025 | Q8: 4e-05 | R8: 4e-05 | S8: 6e-05 | T8: 6e-05 | U8: 140 | V8: 6e-05 | Z8: 0 | AA8: 0.015
A9: Inspection Location Cost Increase Factor: | C9: =VLOOKUP($B$4,$O$2:$V$31,6) -> 0 | D9: 0 | E9: Emery County | F9: 0 | G9: 0 | H9: 0 | I9: 0 | J9: 0 | K9: ='Cap Devel CBE Details'!$A$156*'Cap Devel CBE Details'!$C$156*U9 -> 0 | L9: 0 | O9: Emery County | P9: 0.0375 | Q9: 5e-05 | R9: 5e-05 | S9: 8e-05 | T9: 8e-05 | U9: 160 | V9: 8e-05 | Z9: 0.01 | AA9: 0.02
A10: DFCM PM Travel Cost Increase Factor: | C10: =VLOOKUP($B$4,$O$2:$V$31,7) -> 0 | D10: Per Night | E10: Garfield County | F10: 0 | G10: 0 | H10: 0 | I10: 0 | J10: 0 | K10: ='Cap Devel CBE Details'!$A$156*'Cap Devel CBE Details'!$C$156*U10 -> 0 | L10: 0 | O10: Garfield County | P10: 0.025 | Q10: 9e-05 | R10: 9e-05 | S10: 0.00013 | T10: 0.00013 | U10: 140 | V10: 0.00013 | Z10: 0.015 | AA10: 0.025
A11: Consultant Location Cost Increase Factor: | C11: =VLOOKUP($B$4,$O$2:$V$31,8) -> 0 | D11: 0 | E11: Grand County | F11: 0 | G11: 0 | H11: 0 | I11: 0 | J11: 0 | K11: ='Cap Devel CBE Details'!$A$156*'Cap Devel CBE Details'!$C$156*U11 -> 0 | L11: 0 | O11: Grand County | P11: 0.05 | Q11: 8e-05 | R11: 8e-05 | S11: 0.00012 | T11: 0.00012 | U11: 160 | V11: 0.00012 | Z11: 0.01 | AA11: 0.02
E12: Iron County | F12: 0 | G12: 0 | H12: 0 | I12: 0 | J12: 0 | K12: ='Cap Devel CBE Details'!$A$156*'Cap Devel CBE Details'!$C$156*U12 -> 0 | L12: 0 | O12: Iron County | P12: 0.025 | Q12: 8e-05 | R12: 8e-05 | S12: 0.00012 | T12: 0.00012 | U12: 130 | V12: 0.00012 | Z12: 0.02 | AA12: 0.03
E13: Juab County | F13: 0 | G13: 0 | H13: 0 | I13: 0 | J13: 0 | K13: ='Cap Devel CBE Details'!$A$156*'Cap Devel CBE Details'!$C$156*U13 -> 0 | L13: 0 | O13: Juab County | P13: 0.0125 | Q13: 3e-05 | R13: 3e-05 | S13: 5e-05 | T13: 5e-05 | U13: 125 | V13: 5e-05 | Z13: 0.0025 | AA13: 0.0125
E14: Kane County | F14: 0 | G14: 0 | H14: 0 | I14: 0 | J14: 0 | K14: ='Cap Devel CBE Details'!$A$156*'Cap Devel CBE Details'!$C$156*U14 -> 0 | L14: 0 | O14: Kane County | P14: 0.05 | Q14: 0.00011 | R14: 0.00011 | S14: 0.00016 | T14: 0.00016 | U14: 140 | V14: 0.00016 | Z14: 0.005 | AA14: 0.015
E15: Millard County | F15: 0 | G15: 0 | H15: 0 | I15: 0 | J15: 0 | K15: ='Cap Devel CBE Details'!$A$156*'Cap Devel CBE Details'!$C$156*U15 -> 0 | L15: 0 | O15: Millard County | P15: 0.0125 | Q15: 5e-05 | R15: 5e-05 | S15: 8e-05 | T15: 8e-05 | U15: 130 | V15: 8e-05 | Z15: 0.02 | AA15: 0.03
E16: Morgan County | F16: 0 | G16: 0 | H16: 0 | I16: 0 | J16: 0 | K16: ='Cap Devel CBE Details'!$A$156*'Cap Devel CBE Details'!$C$156*U16 -> 0 | L16: 0 | O16: Morgan County | P16: 0.0075 | Q16: 2e-05 | R16: 2e-05 | S16: 3e-05 | T16: 3e-05 | U16: 125 | V16: 3e-05 | Z16: 0.005 | AA16: 0.015
E17: Piute County | F17: 0 | G17: 0 | H17: 0 | I17: 0 | J17: 0 | K17: ='Cap Devel CBE Details'!$A$156*'Cap Devel CBE Details'!$C$156*U17 -> 0 | L17: 0 | O17: Piute County | P17: 0.025 | Q17: 7e-05 | R17: 7e-05 | S17: 0.00011 | T17: 0.00011 | U17: 125 | V17: 0.00011 | Z17: 0 | AA17: 0.0125
E18: Rich County | F18: 0 | G18: 0 | H18: 0 | I18: 0 | J18: 0 | K18: ='Cap Devel CBE Details'!$A$156*'Cap Devel CBE Details'!$C$156*U18 -> 0 | L18: 0 | O18: Rich County | P18: 0.0125 | Q18: 4e-05 | R18: 4e-05 | S18: 6e-05 | T18: 6e-05 | U18: 130 | V18: 6e-05 | Z18: 0.01 | AA18: 0.02
E19: Salt Lake County | F19: 0 | G19: 0 | H19: 0 | I19: 0 | J19: 0 | K19: ='Cap Devel CBE Details'!$A$156*'Cap Devel CBE Details'!$C$156*U19 -> 0 | L19: 0 | O19: Salt Lake County | P19: 0 | Q19: 0 | R19: 0 | S19: 0 | T19: 0 | U19: 150 | V19: 0 | Z19: 0.005 | AA19: 0.015
E20: San Juan County | F20: 0 | G20: 0 | H20: 0 | I20: 0 | J20: 0 | K20: ='Cap Devel CBE Details'!$A$156*'Cap Devel CBE Details'!$C$156*U20 -> 0 | L20: 0 | O20: San Juan County | P20: 0.05 | Q20: 0.0001 | R20: 0.0001 | S20: 0.00015 | T20: 0.00015 | U20: 150 | V20: 0.00015 | Z20: 0 | AA20: 0
E21: Sanpete County | F21: 0 | G21: 0 | H21: 0 | I21: 0 | J21: 0 | K21: ='Cap Devel CBE Details'!$A$156*'Cap Devel CBE Details'!$C$156*U21 -> 0 | L21: 0 | O21: Sanpete County | P21: 0.0125 | Q21: 5e-05 | R21: 5e-05 | S21: 7e-05 | T21: 7e-05 | U21: =P56 -> 130 | V21: 7e-05 | Z21: 0.02 | AA21: 0.03
E22: Select County | F22: 0 | G22: 0 | H22: 0 | I22: 0 | J22: 0 | K22: ='Cap Devel CBE Details'!$A$156*'Cap Devel CBE Details'!$C$156*U22 -> 0 | L22: 0 | O22: Select County | P22: 0 | Q22: 0 | R22: 0 | S22: 0 | T22: 0 | U22: 0 | V22: 0 | Z22: 0.005 | AA22: 0.015
E23: Sevier County | F23: 0 | G23: 0 | H23: 0 | I23: 0 | J23: 0 | K23: ='Cap Devel CBE Details'!$A$156*'Cap Devel CBE Details'!$C$156*U23 -> 0 | L23: 0 | O23: Sevier County | P23: 0.0125 | Q23: 6e-05 | R23: 6e-05 | S23: 9e-05 | T23: 9e-05 | U23: =P58 -> 125 | V23: 9e-05 | Z23: 0.005 | AA23: 0.015
E24: Summit County | F24: 0 | G24: 0 | H24: 0 | I24: 0 | J24: 0 | K24: ='Cap Devel CBE Details'!$A$156*'Cap Devel CBE Details'!$C$156*U24 -> 0 | L24: 0 | O24: Summit County | P24: 0.0125 | Q24: 2e-05 | R24: 2e-05 | S24: 3e-05 | T24: 3e-05 | U24: =P59 -> 160 | V24: 3e-05 | Z24: 0 | AA24: 0.015
E25: Tooele County | F25: 0 | G25: 0 | H25: 0 | I25: 0 | J25: 0 | K25: ='Cap Devel CBE Details'!$A$156*'Cap Devel CBE Details'!$C$156*U25 -> 0 | L25: 0 | O25: Tooele County | P25: 0.0125 | Q25: 2e-05 | R25: 2e-05 | S25: 2e-05 | T25: 2e-05 | U25: 150 | V25: 2e-05 | Z25: 0.005 | AA25: 0.015
E26: Uintah County | F26: 0 | G26: 0 | H26: 0 | I26: 0 | J26: 0 | K26: ='Cap Devel CBE Details'!$A$156*'Cap Devel CBE Details'!$C$156*U26 -> 0 | L26: 0 | O26: Uintah County | P26: 0.025 | Q26: 6e-05 | R26: 6e-05 | S26: 9e-05 | T26: 9e-05 | U26: 145 | V26: 9e-05 | Z26: 0.01 | AA26: 0.02
E27: Utah County | F27: 0 | G27: 0 | H27: 0 | I27: 0 | J27: 0 | K27: ='Cap Devel CBE Details'!$A$156*'Cap Devel CBE Details'!$C$156*U27 -> 0 | L27: 0 | O27: Utah County | P27: 0 | Q27: 2e-05 | R27: 2e-05 | S27: 3e-05 | T27: 3e-05 | U27: 135 | V27: 3e-05 | Z27: 0 | AA27: 0.01
E28: Wasatch County | F28: 0 | G28: 0 | H28: 0 | I28: 0 | J28: 0 | K28: ='Cap Devel CBE Details'!$A$156*'Cap Devel CBE Details'!$C$156*U28 -> 0 | L28: 0 | O28: Wasatch County | P28: 0.0125 | Q28: 2e-05 | R28: 2e-05 | S28: 3e-05 | T28: 3e-05 | U28: 160 | V28: 3e-05 | Z28: 0 | AA28: 0.015
E29: Washington County | F29: 0 | G29: 0 | H29: 0 | I29: 0 | J29: 0 | K29: ='Cap Devel CBE Details'!$A$156*'Cap Devel CBE Details'!$C$156*U29 -> 0 | L29: 0 | O29: Washington County | P29: 0.0075 | Q29: 0.00011 | R29: 0.00011 | S29: 0.00016 | T29: 0.00016 | U29: 135 | V29: 0.00016 | Z29: 0.0025 | AA29: 0.0125
E30: Wayne County | F30: 0 | G30: 0 | H30: 0 | I30: 0 | J30: 0 | K30: ='Cap Devel CBE Details'!$A$156*'Cap Devel CBE Details'!$C$156*U30 -> 0 | L30: 0 | O30: Wayne County | P30: 0.0375 | Q30: 7e-05 | R30: 7e-05 | S30: 0.0001 | T30: 0.0001 | U30: 145 | V30: 0.0001 | Z30: 0.015 | AA30: 0.025
E31: Weber County | F31: 0 | G31: 0 | H31: 0 | I31: 0 | J31: 0 | K31: ='Cap Devel CBE Details'!$A$156*'Cap Devel CBE Details'!$C$156*U31 -> 0 | L31: 0 | O31: Weber County | P31: 0 | Q31: 2e-05 | R31: 2e-05 | S31: 2e-05 | T31: 2e-05 | U31: 145 | V31: 2e-05 | Z31: 0 | AA31: 0.01
T35: OK Per Thomas Peterson 9-29-2021
I36: Lodging Per Diem Rates | J36: Unless listed below, the lodging per diem rate for a Utah city is $75.00 (plus tax). | K36: $50 added for Meals and Taxes | O36: Select County | P36: DFCM PM Travel Hotel & Food Per Diem Rates | T36: Inspection Location Cost Increase Factor | U36: Less 1.2%
I37: All Other UT Cities $75.00 (plus tax) | J37: 75 | K37: =J37+50 -> 125 | L37: All Other Cities | O37: Beaver County | P37: =K37 -> 125 | T37: 0.025 | U37: =T37-1.2% -> 0.013
I38: Tremonton$90.00 (plus tax) | J38: 90 | K38: 140 | L38: Box Elder County | O38: Box Elder County | P38: =K38 -> 140 | T38: 0.01 | U38: 0
I39: Brigham City$80.00 (plus tax) | J39: 80 | K39: 130 | L39: Box Elder County | O39: Cache County | P39: =K40 -> 140 | T39: 0.01 | U39: 0
I40: Logan$90.00 (plus tax) | J40: 90 | K40: 140 | L40: Cache County | O40: Carbon County | P40: =K37 -> 125 | T40: 0.015 | U40: =T40-1.2% -> 0.003
I41: Centerville$100.00 (plus tax) | J41: 100 | K41: 150 | L41: Davis County | O41: Daggett County | P41: =K37 -> 125 | T41: 0.03 | U41: 0.018
I42: Farmington$90.00 (plus tax) | J42: 90 | K42: 140 | L42: Davis County | O42: Davis County | P42: =K41 -> 150 | T42: 0.01 | U42: 0
I43: Layton$90.00 (plus tax) | J43: 90 | K43: 140 | L43: Davis County | O43: Duchesne County | P43: =K44 -> 140 | T43: 0.02 | U43: 0.008
I44: Duchesne$90.00 (plus tax) | J44: 90 | K44: 140 | L44: Duchesne County | O44: Emery County | P44: =K46 -> 160 | T44: 0.025 | U44: 0.013
I45: Roosevelt$90.00 (plus tax) | J45: 90 | K45: 140 | L45: Duchesne County | O45: Garfield County | P45: =K48 -> 140 | T45: 0.02 | U45: 0.008
I46: Green River$110.00 (plus tax) | J46: 110 | K46: 160 | L46: Emery County | O46: Grand County | P46: =K49 -> 160 | T46: 0.03 | U46: 0.018
I47: Tropic$95.00 (plus tax) | J47: 95 | K47: 145 | L47: Garfield County | O47: Iron County | P47: =K50 -> 130 | T47: 0.0125 | U47: 0.0005
I48: Bryce Canyon City$90.00(plus tax) | J48: 90 | K48: 140 | L48: Garfield County | O48: Juab County | P48: =K37 -> 125 | T48: 0.015 | U48: 0.003
I49: Moab$110.00 (plus tax) | J49: 110 | K49: 160 | L49: Grand County | O49: Kane County | P49: =K51 -> 140 | T49: 0.03 | U49: 0.018
I50: Cedar City$80.00 (plus tax) | J50: 80 | K50: 130 | L50: Iron County | O50: Millard County | P50: =K52 -> 130 | T50: 0.015 | U50: 0.003
I51: Kanab$90.00 (plus tax) | J51: 90 | K51: 140 | L51: Kane County | O51: Morgan County | P51: =K37 -> 125 | T51: 0.01 | U51: 0
I52: Fillmore$80.00 (plus tax) | J52: 80 | K52: 130 | L52: Millard County | O52: Piute County | P52: =K37 -> 125 | T52: 0.02 | U52: 0.008
I53: Garden City$80.00 (plus tax) | J53: 80 | K53: 130 | L53: Rich County | O53: Rich County | P53: =K53 -> 130 | T53: 0.015 | U53: 0.003
I54: Draper$100.00 (plus tax) | J54: 100 | K54: 150 | L54: Salt Lake County | O54: Salt Lake County | P54: =K55 -> 150 | T54: 0 | U54: 0
I55: SLC Area$100.00 (plus tax) | J55: 100 | K55: 150 | L55: Salt Lake County | O55: San Juan County | P55: =K56 -> 150 | T55: 0.03 | U55: 0.018
I56: Bluff$100.00 (plus tax) | J56: 100 | K56: 150 | L56: San Juan County | O56: Sanpete County | P56: =K61 -> 130 | T56: 0.015 | U56: 0.003
O57: Select County | P57: 0 | T57: 0 | U57: 0
I58: Mexican Hat$90.00 (plus tax) | J58: 90 | K58: 140 | L58: San Juan County | O58: Sevier County | P58: =K37 -> 125 | T58: 0.015 | U58: 0.003
I59: Blanding$85.00 (plus tax) | J59: 85 | K59: 135 | L59: San Juan County | O59: Summit County | P59: =K62 -> 160 | T59: 0.01 | U59: 0
I60: Monticello$80.00 (plus tax) | J60: 80 | K60: 130 | L60: San Juan County | O60: Tooele County | P60: =K63 -> 150 | T60: 0.015 | U60: 0.003
I61: Ephraim$80.00 (plus tax) | J61: 80 | K61: 130 | L61: Sanpete County | O61: Uintah County | P61: =K64 -> 145 | T61: 0.02 | U61: 0.008
I62: Park City$110.00 (plus tax) | J62: 110 | K62: 160 | L62: Summit County | O62: Utah County | P62: =K66 -> 135 | T62: 0.01 | U62: 0
I63: Tooele$100.00 (plus tax) | J63: 100 | K63: 150 | L63: Tooele County | O63: Wasatch County | P63: =K71 -> 160 | T63: 0.01 | U63: 0
I64: Vernal$95.00 (plus tax) | J64: 95 | K64: 145 | L64: Uintah County | O64: Washington County | P64: =K73 -> 135 | T64: 0.0125 | U64: 0.0005
I65: Ballard$90.00 (plus tax) | J65: 90 | K65: 140 | L65: Uintah County | O65: Wayne County | P65: =K78 -> 145 | T65: 0.025 | U65: 0.013
I66: American Fork$85.00 (plus tax) | J66: 85 | K66: 135 | L66: Utah County | O66: Weber County | P66: =K80 -> 145 | T66: 0.01 | U66: 0
I67: Lehi$85.00 (plus tax) | J67: 85 | K67: 135 | L67: Utah County | T67: OK Per Thomas Peterson 9-29-2021
I68: Orem$85.00 (plus tax) | J68: 85 | K68: 135 | L68: Utah County
I69: Provo$85.00 (plus tax) | J69: 85 | K69: 135 | L69: Utah County
I70: Springville$85.00 (plus tax) | J70: 85 | K70: 135 | L70: Utah County
I71: Midway$110.00 (plus tax) | J71: 110 | K71: 160 | L71: Wasatch County
I72: Heber$85.00 (plus tax) | J72: 85 | K72: 135 | L72: Wasatch County
I73: Hurricane$85.00 (plus tax) | J73: 85 | K73: 135 | L73: Washington County
I74: La Verkin$85.00 (plus tax) | J74: 85 | K74: 135 | L74: Washington County
I75: Springdale$85.00 (plus tax) | J75: 85 | K75: 135 | L75: Washington County
I76: St George$85.00 (plus tax) | J76: 85 | K76: 135 | L76: Washington County
I77: Washington$85.00 (plus tax) | J77: 85 | K77: 135 | L77: Washington County
I78: Torrey$95.00 (plus tax) | J78: 95 | K78: 145 | L78: Wayne County
I79: Hanksville$85.00 (plus tax) | J79: 85 | K79: 135 | L79: Wayne County
I80: Ogden$95.00 (plus tax) | J80: 95 | K80: 145 | L80: Weber County

Sheet County Seat Distances (hidden)
A1: 1 | B1: Beaver County | C1: Beaver | D1: 6629 | E1: Distance from Salt Lake City, Utah to Beaver | F1: 198.8 | G1: =F1/1000000 -> 0.0001988 | H1: =ROUNDUP(G1,5) -> 0.0002
A2: 2 | B2: Box Elder County | C2: Brigham City | D2: 49975 | E2: Distance from Salt Lake City, Utah to Brigham City | F2: 59.3 | G2: =F2/1000000 -> 5.93e-05 | H2: =ROUNDUP(G2,5) -> 6e-05
A3: 3 | B3: Cache County | C3: Logan | D3: 112656 | E3: Distance from Salt Lake City, Utah to Logan | F3: 82.3 | G3: 8.23e-05 | H3: 9e-05
A4: 4 | B4: Carbon County | C4: Price | D4: 21403 | E4: Distance from Salt Lake City, Utah to Price | F4: 118.9 | G4: 0.0001189 | H4: 0.00012
A5: 5 | B5: Daggett County | C5: Manila | D5: 1059 | E5: Distance from Salt Lake City, Utah to Manila | F5: 169.3 | G5: 0.0001693 | H5: 0.00017
A6: 6 | B6: Davis County | C6: Farmington | D6: 306479 | E6: Distance from Salt Lake City, Utah to Farmington | F6: 16.9 | G6: 1.69e-05 | H6: 2e-05
A7: 7 | B7: Duchesne County | C7: Duchesne | D7: 18607 | E7: Distance from Salt Lake City, Utah to Duchesne | F7: 114.7 | G7: 0.0001147 | H7: 0.00012
A8: 8 | B8: Emery County | C8: Castle Dale | D8: 10976 | E8: Distance from Salt Lake City, Utah to Castle Dale | F8: 149.2 | G8: 0.0001492 | H8: 0.00015
A9: 9 | B9: Garfield County | C9: Panguitch | D9: 5172 | E9: Distance from Salt Lake City, Utah to Panguitch | F9: 245.1 | G9: 0.0002451 | H9: 0.00025
A10: 10 | B10: Grand County | C10: Moab | D10: 9225 | E10: Distance from Salt Lake City, Utah to Moab | F10: 233.8 | G10: 0.0002338 | H10: 0.00024
A11: 11 | B11: Iron County | C11: Parowan | D11: 46163 | E11: Distance from Salt Lake City, Utah to Parowan | F11: 232.5 | G11: 0.0002325 | H11: 0.00024
A12: 12 | B12: Juab County | C12: Nephi | D12: 10246 | E12: Distance from Salt Lake City, Utah to Nephi | F12: 83.6 | G12: 8.36e-05 | H12: 9e-05
A13: 13 | B13: Kane County | C13: Kanab | D13: 7125 | E13: Distance from Salt Lake City, Utah to Kanab | F13: 312.2 | G13: 0.0003122 | H13: 0.00032
A14: 14 | B14: Millard County | C14: Fillmore | D14: 12503 | E14: Distance from Salt Lake City, Utah to Fillmore | F14: 145.1 | G14: 0.0001451 | H14: 0.00015
A15: 15 | B15: Morgan County | C15: Morgan | D15: 9469 | E15: Distance from Salt Lake City, Utah to Morgan | F15: 46.8 | G15: 4.68e-05 | H15: 5e-05
A16: 16 | B16: Piute County | C16: Junction | D16: 1556 | E16: Distance from Salt Lake City, Utah to Junction | F16: 205.4 | G16: 0.0002054 | H16: 0.00021
A17: 17 | B17: Rich County | C17: Randolph | D17: 2264 | E17: Distance from Salt Lake City, Utah to Randolph | F17: 116.9 | G17: 0.0001169 | H17: 0.00012
A18: 18 | B18: Salt Lake County | C18: Salt Lake City | D18: 1029665 | E18: Distance from Salt Lake City, Utah to Salt Lake City | F18: 0 | G18: 0 | H18: 0
A19: 19 | B19: San Juan County | C19: Monticello | D19: 14746 | E19: Distance from Salt Lake City, Utah to Monticello | F19: 287.7 | G19: 0.0002877 | H19: 0.00029
A20: 20 | B20: Sanpete County | C20: Manti | D20: 27882 | E20: Distance from Salt Lake City, Utah to Manti | F20: 124.3 | G20: 0.0001243 | H20: 0.00013
A21: 21 | B21: Sevier County | C21: Richfield | D21: 20802 | E21: Distance from Salt Lake City, Utah to Richfield | F21: 162 | G21: 0.000162 | H21: 0.00017
A22: 22 | B22: Summit County | C22: Coalville | D22: 36324 | E22: Distance from Salt Lake City, Utah to Coalville | F22: 44.8 | G22: 4.48e-05 | H22: 5e-05
A23: 23 | B23: Tooele County | C23: Tooele | D23: 58218 | E23: Distance from Salt Lake City, Utah to Tooele | F23: 35.4 | G23: 3.54e-05 | H23: 4e-05
A24: 24 | B24: Uintah County | C24: Vernal | D24: 32588 | E24: Distance from Salt Lake City, Utah to Vernal | F24: 172.7 | G24: 0.0001727 | H24: 0.00018
A25: 25 | B25: Utah County | C25: Provo | D25: 516564 | E25: Distance from Salt Lake City, Utah to Provo | F25: 45.3 | G25: 4.53e-05 | H25: 5e-05
A26: 26 | B26: Wasatch County | C26: Heber City | D26: 23530 | E26: Distance from Salt Lake City, Utah to Heber City | F26: 45.2 | G26: 4.52e-05 | H26: 5e-05
A27: 27 | B27: Washington County | C27: St. George | D27: 138115 | E27: Distance from Salt Lake City, Utah to St. George | F27: 301.9 | G27: 0.0003019 | H27: 0.00031
A28: 28 | B28: Wayne County | C28: Loa | D28: 2589 | E28: Distance from Salt Lake City, Utah to Loa | F28: 196.7 | G28: 0.0001967 | H28: 0.0002
A29: 29 | B29: Weber County | C29: Ogden | D29: 231236 | E29: Distance from Salt Lake City, Utah to Ogden | F29: 38.2 | G29: 3.82e-05 | H29: 4e-05

Sheet UofU PDC Fee Schedule (hidden)
A1: Planning Design & Construction
A2: PDC Management Fee
A3: Effective July 1, 2019
A5: Total Project Cost*: | B5: ='Cap Devel CBE Summary'!C12+SUM('Cap Devel CBE Summary'!C15:C28)+SUM('Cap Devel CBE Summary'!C30:C31) ->  | C5: *Calculated before User Fee.
A6: Project / Study**: | B6: ='Cap Devel CBE Details'!C160 -> Choose One | C6: ** Studies incur a 5% fee.
A7: Fee: | B7: =IF(OR(B5="",B6="Choose One"),"",ROUND(IF(B6="Study",B5*0.05,SUM(H11:H19)),0)) -> 
F8: Project | G8: Study | H8: Non-State
F9: =B5 ->  | G9: =B5 ->  | H9: ='Cap Devel CBE Details'!F209 -> 0
A10: Lower Limit of Range | B10: Upper Limit of Range | C10: Fee
A11: 1 | B11: 100000 | C11: 0.05 | E11: 0.05 | F11: =IF(OR(F$9<$B11,F$9=$B11),F$9*$E11,0) ->  | G11: =B5*0.05 ->  | H11: =IF(OR(H$9<$B11,H$9=$B11),H$9*$E11,0) -> 0
A12: 100001 | B12: 250000 | C12: $5,000 + 5% over $100,000 | D12: 5000 | E12: 0.05 | F12: =IF(AND(F$9>$B11,OR(F$9<$B12,F$9=$B12)),$D12+((F$9-$B11)*$E12),0) ->  | H12: =IF(AND(H$9>$B11,OR(H$9<$B12,H$9=$B12)),$D12+((H$9-$B11)*$E12),0) -> 0
A13: 250001 | B13: 500000 | C13: $12,500 + 4.5% over $250,000 | D13: 12500 | E13: 0.045 | H13: 0
A14: 500001 | B14: 2500000 | C14: $23,750 + 4% over $500,000 | D14: 23750 | E14: 0.04 | H14: 0
A15: 2500001 | B15: 10000000 | C15: $103,750 + 3% over $2,500,000 | D15: 103750 | E15: 0.03 | H15: 0
A16: 10000001 | B16: 15000000 | C16: $328,750 + 2% over $10,000,000 | D16: 328750 | E16: 0.02 | H16: 0
A17: 15000001 | B17: 50000000 | C17: $428,750 + 1% over $15,000,000 | D17: 428750 | E17: 0.01 | H17: 0
A18: 50000001 | B18: 100000000 | C18: $778,750 + .1% over $50,000,000 | D18: 778750 | E18: 0.001 | H18: 0
A19: $100,000,001 | B19: 999999999999999 | C19: $828,750 + .1% over $100,000,000 | D19: 828750 | E19: 0.001 | H19: 0
F21: =SUM(F11:F19) ->  | G21: =SUM(G11:G19) ->  | H21: =SUM(H11:H19) -> 0

Sheet Drop Downs (hidden)
A1: Yes or No | B1: Is Project State Funded? | C1: Project Complexity | D1: Select Agency / Institution | E1: Select Project or Study: | F1: Select Delivery Method | G1: Leed Certification Levels | H1: Leed Cost % | I1: PM Travel Days/Trip | J1: Unit | L1: Select Project Type
A2: Choose One | B2: Choose One | C2: A | D2: Bridgerland Technical College (BTECH) | E2: Choose One | F2: CMGC - Development | G2: Select LEED Level | H2: 0 | I2: 0 | J2: TCC | K2: TCC = Total Const Cost | L2: Applied Technology | M2: Applied Technology
A3: YES | B3: YES | C3: B | D3: Capitol Preservation Board | E3: Project | F3: Design Bid Build - Development | G3: LEED Certified – 0-2.5% | H3: 0.025 | I3: 1 | J3: EA | K3: EA = Each | L3: ASRS Warehouse | M3: ASRS Warehouse
A4: NO | B4: NO | C4: C | D4: County | E4: Study | F4: Design Build - Development | G4: LEED Silver – 0-3.3% | H4: 0.033 | I4: 2 | J4: SF | K4: SF = Square Feet | L4: Campground | M4: Campground
A5: Included | B5: Partially | C5: D | D5: Courts | F5: MOU - Development | G5: LEED Gold – 0.3-5.0% | H5: 0.05 | I5: 3 | J5: LF | K5: LF = Lineal Feet | L5: Campus Auxiliary Building | M5: Campus Auxiliary Building
C6: E | D6: Davis Technical College (DATC) | F6: MOU - Improvement | G6: LEED Platinum – 4.5-8.5% | H6: 0.085 | I6: 4 | J6: CF | K6: CF = Cubic Feet | L6: Classroom | M6: Classroom
D7: Department Of Agriculture And Food (UDAF) | I7: 5 | J7: CY | K7: CY = Cubic Yards | L7: Complex Classroom | M7: Complex Classroom
D8: Department Of Alcoholic Beverage Services (DABS) | I8: 6 | J8: Fx | K8: Fx = Formula | L8: Continuing Education / Community Services | M8: Continuing Education / Community Services
D9: Department of Cultural and Community Engagement (DCCE) | I9: 7 | L9: Court Building | M9: Court Building
D10: Department Of Public Safety (DPS) | I10: 8 | L10: Demolition | M10: Demolition
D11: Department Of Transportation (UDOT) | I11: 9 | L11: DMV | M11: DMV
D12: Department Of Veterans Affairs (DVA) | I12: 10 | L12: Electrical Upgrades | M12: Electrical Upgrades
D13: Department Of Workforce Services (DWS) | I13: 11 | L13: Equestrian Event Center | M13: Equestrian Event Center
D14: DGO - Department of Facilities Construction and Maintenance (DFCM) | I14: 12 | L14: Fairpark Facilities | M14: Fairpark Facilities
D15: DGO - Deptpartment Of Government Operations (DGO) | I15: 13 | L15: Fire Dispatch | M15: Fire Dispatch
D16: DGO - Division of Fleet Operations | I16: 14 | L16: Fisheries | M16: Fisheries
D17: DGO - Division of Human Resource Management (DHRM) | L17: Fitness | M17: Fitness
D18: DGO - Division of Purchasing and General Services - Surplus | L18: Ice Rink | M18: Ice Rink
D19: DGO - Divisions of Technology Services (DTS) | L19: Liquor Store | M19: Liquor Store
D20: DGO - Other | L20: Long Term Care / Nursing Home | M20: Long Term Care / Nursing Home
D21: DHHS - Department Of Health And Human Services (DHHS) | L21: Medical | M21: Medical
D22: DHHS - Division Of Juvenile Justice Services (DJJS) | L22: Mechanical Upgrades | M22: Mechanical Upgrades
D23: DHHS - Utah State Developmental Center (USDC | L23: Museum | M23: Museum
D24: DHHS - Utah State Hospital (USH) | L24: National Guard Armory | M24: National Guard Armory
D25: Dixie Technical College (DATC) | L25: National Guard Readiness Center | M25: National Guard Readiness Center
D26: DNR - Department Of Natural Resources | L26: Office | M26: Office
D27: DNR - Division of State Parks (DSP) | L27: Office Remodel | M27: Office Remodel
D28: DNR - Division Of Wildlife Resources (DWR) | L28: Parking Structure | M28: Parking Structure
D29: DOC - Adult Probation & Parole | L29: Paving | M29: Paving
D30: DOC - Central Utah Correctional Facility | L30: Performing Arts | M30: Performing Arts
D31: DOC - Department Of Corrections | L31: Public Safety Building | M31: Public Safety Building
D32: DOC - Utah State Prison | L32: Reroofing | M32: Reroofing
D33: Mountainlands Applied Technical College (MATC) | L33: Research Lab | M33: Research Lab
D34: National Guard | L34: Site | M34: Site
D35: Ogden/Weber Technical College (OTECH) | L35: Specialty School | M35: Specialty School
D36: Salt Lake Community College (SLCC) | L36: Stadium | M36: Stadium
D37: School For The Deaf And Blind (USDB) | L37: Student Commons | M37: Student Commons
D38: Snow College | L38: Student Housing | M38: Student Housing
D39: Southern Utah University (SUU) | L39: Student Life Health & Wellness | M39: Student Life Health & Wellness
D40: Southwest Technical College (STECH) | L40: UDOT Maintenance Facility | M40: UDOT Maintenance Facility
D41: State Archives | L41: UDOT Salt Shed | M41: UDOT Salt Shed
D42: State Fairpark | L42: Other – Please Describe in "Additional Project Info:" | M42: Other – Please Describe in "Additional Project Info:"
D43: State Tax Commission
D44: Tooele Technical College (TATC)
D45: Uintah Basin Technical College (UBTECH)
D46: United States District Court - District Of Utah
D47: University Of Utah (UofU)
D48: Utah Board Of Education
D49: Utah College Of Applied Technology (UCAT)
D50: Utah State University (USU)
D51: Utah Tech University (UTU)
D52: Utah Valley University (UVU)
D53: Weber State University (WSU)
D54: Other *Please Specify
